Workbook

Sheet Plan0_Definições (hidden)
B2: PROGRAMA ESTRADAS DA INTEGRAÇÃO PROJETO DE ADEQUAÇÃO, READEQUAÇÃO, MAUTENÇÃO E OU MELHORIAS DE ESTRADAS RURAIS MUNICIPAIS - CUSTEIO SOMENTE ÓLEO DIESEL COM BASE EM RTV - Relatório Técnico de Vistoria e Projetos Técnicos
B4: 1 . DEFINIÇÕES
B6: 1.1 | C6: ABERTURA DE ESTRADAS RURAIS: obra destinada a dar acesso aos lotes que estão sendo objeto de reforma agrária, permitindo assim o livre acesso dos moradores ao comércio, educação, saúde e cidadania. Utilizando –se de práticas para a Conservação de solos e consequentemente das estradas, com a construção de estruturas para captação e retenção de águas pluviais.
B7: 1.2 | C7: ADEQUAÇÃO DE ESTRADAS RURAIS*: obras destinadas à execução de melhoramentos em estradas rurais de menor hierarquia funcional, possuindo superfície de rolamento “não pavimentada”, cujo objetivo é o de elevar seu padrão operacional. Inclui-se nessa modalidade de intervenção: • Serviços de re-locação de parte de seu traçado; • Re-conformação de segmentos do greide; • Execução de camadas de reforço do sub-leito e/ou; • Revestimento primário. *Fonte: Estradas rurais Técnicas Adequadas de Manutenção. Florianópolis DER, 2003. 236 p. il. 30cm.
B8: 1.3 | C8: MANUTENÇÃO DE ESTRADA RURAL: pode ser definido como amplo conjunto de atividades destinadas a assegurar um transporte seguro, econômico e confortável em uma estrada ou rede de estradas. Uma das finalidades primordiais da manutenção é evitar, ao máximo possível, a perda desnecessária do capital já investido, mediante a proteção física da estrutura básica e da superfície de rolamento da estrada. A manutenção deve evitar a deterioração precoce da estrutura das estradas e, por conseguinte, a necessidade de serviços de reconstrução. Inclui-se nessa definição, as atividades de manutenção corretiva rotineira e periódica.
B9: 1.4 | C9: MELHORIA DE ESTRADA RURAL: Conjunto de operações que acrescentam as rodovias (estradas) existentes características novas, sem modificar as existentes ex. colocação de bueiros, sarjeteamento, bigodes, caixas de retenção. (fonte: DNER, glossário de termos técnicos rodoviários, Rio de janeiro, 1997, 266p. IPR. Publ.; 700).
B10: 1.5 | C10: Trafegabilidade é uma palavra derivada de trafegável, que se pode trafegar, andar no tráfego; fazer algum caminho; andar, transitar: os pedestres precisam de cuidado ao trafegar por ruas movimentadas. (fonte: https://www.dicio.com.br)
B11: 1.6 | C11: XXI - serviço de engenharia: toda atividade ou conjunto de atividades destinadas a obter determinada utilidade, intelectual ou material, de interesse para a Administração e que, não enquadradas no conceito de obra a que se refere o inciso XII do caput deste artigo, são estabelecidas, por força de lei, como privativas das profissões de arquiteto e engenheiro ou de técnicos especializados, que compreendem: a) serviço comum de engenharia: todo serviço de engenharia que tem por objeto ações, objetivamente padronizáveis em termos de desempenho e qualidade, de manutenção, de adequação e de adaptação de bens móveis e imóveis, com preservação das características originais dos bens; b) serviço especial de engenharia: aquele que, por sua alta heterogeneidade ou complexidade, não pode se enquadrar na definição constante da alínea “a” deste inciso; fonte: CAPÍTULO III, DAS DEFINIÇÕES, Art. 6º Para os fins desta Lei LEI Nº 14.133, DE 1º DE ABRIL DE 2021
B12: 1.7 | C12: XXIV - anteprojeto: peça técnica com todos os subsídios necessários à elaboração do projeto básico, que deve conter, no mínimo, os seguintes elementos: L14133 http://www.planalto.gov.br/ccivil_03/_ato2019-2022/2021/lei/L14133.htm 4 of 73 30/11/2022 09:56 a) demonstração e justificativa do programa de necessidades, avaliação de demanda do público-alvo, motivação técnico-econômico-social do empreendimento, visão global dos investimentos e definições relacionadas ao nível de serviço desejado; b) condições de solidez, de segurança e de durabilidade; c) prazo de entrega; d) estética do projeto arquitetônico, traçado geométrico e/ou projeto da área de influência, quando cabível; e) parâmetros de adequação ao interesse público, de economia na utilização, de facilidade na execução, de impacto ambiental e de acessibilidade; f) proposta de concepção da obra ou do serviço de engenharia; g) projetos anteriores ou estudos preliminares que embasaram a concepção proposta; h) levantamento topográfico e cadastral; i) pareceres de sondagem; j) memorial descritivo dos elementos da edificação, dos componentes construtivos e dos materiais de construção, de forma a estabelecer padrões mínimos para a contratação; fonte: CAPÍTULO III, DAS DEFINIÇÕES, Art. 6º Para os fins desta Lei LEI Nº 14.133, DE 1º DE ABRIL DE 2021, consideram-se:
B13: 1.8 | C13: XXV - projeto básico: conjunto de elementos necessários e suficientes, com nível de precisão adequado para definir e dimensionar a obra ou o serviço, ou o complexo de obras ou de serviços objeto da licitação, elaborado com base nas indicações dos estudos técnicos preliminares, que assegure a viabilidade técnica e o adequado tratamento do impacto ambiental do empreendimento e que possibilite a avaliação do custo da obra e a definição dos métodos e do prazo de execução, devendo conter os seguintes elementos: a) levantamentos topográficos e cadastrais, sondagens e ensaios geotécnicos, ensaios e análises laboratoriais, estudos socioambientais e demais dados e levantamentos necessários para execução da solução escolhida; b) soluções técnicas globais e localizadas, suficientemente detalhadas, de forma a evitar, por ocasião da elaboração do projeto executivo e da realização das obras e montagem, a necessidade de reformulações ou variantes quanto à qualidade, ao preço e ao prazo inicialmente definidos; c) identificação dos tipos de serviços a executar e dos materiais e equipamentos a incorporar à obra, bem como das suas especificações, de modo a assegurar os melhores resultados para o empreendimento e a segurança executiva na utilização do objeto, para os fins a que se destina, considerados os riscos e os perigos identificáveis, sem frustrar o caráter competitivo para a sua execução; d) informações que possibilitem o estudo e a definição de métodos construtivos, de instalações provisórias e de condições organizacionais para a obra, sem frustrar o caráter competitivo para a sua execução; e) subsídios para montagem do plano de licitação e gestão da obra, compreendidos a sua programação, a estratégia de suprimentos, as normas de fiscalização e outros dados necessários em cada caso; f) orçamento detalhado do custo global da obra, fundamentado em quantitativos de serviços e fornecimentos propriamente avaliados, obrigatório exclusivamente para os regimes de execução previstos nos incisos I, II, III, IV e VII do caput do art. 46 desta Lei; fonte: CAPÍTULO III, DAS DEFINIÇÕES, Art. 6º Para os fins desta Lei LEI Nº 14.133, DE 1º DE ABRIL DE 2021
B14: 1.9 | C14: XXVI - projeto executivo: conjunto de elementos necessários e suficientes à execução completa da obra, com o detalhamento das soluções previstas no projeto básico, a identificação de serviços, de materiais e de equipamentos a serem incorporados à obra, bem como suas especificações técnicas, de acordo com as normas técnicas pertinentes; fonte: CAPÍTULO III, DAS DEFINIÇÕES, Art. 6º LEI Nº 14.133, DE 1º DE ABRIL DE 2021:
B15: 1.10 | C15: Art. 169. As contratações públicas deverão submeter-se a práticas contínuas e permanentes de gestão de riscos e de controle preventivo, inclusive mediante adoção de recursos de tecnologia da informação, e, além de estar subordinadas ao controle social, sujeitar-se-ão às seguintes linhas de defesa: I - primeira linha de defesa, integrada por servidores e empregados públicos, agentes de licitação e autoridades que atuam na estrutura de governança do órgão ou entidade; II - segunda linha de defesa, integrada pelas unidades de assessoramento jurídico e de controle interno do próprio órgão ou entidade; III - terceira linha de defesa, integrada pelo órgão central de controle interno da Administração e pelo tribunal de contas... fonte: CAPÍTULO III, DO CONTROLE DAS CONTRATAÇÕES Art. 169.LEI Nº 14.133, DE 1º DE ABRIL DE 2021

Sheet Plan 1 REND ORIENT Definições
B2: Rendimentos de serviços
B3: nº | C3: Serviço | D3: Rendimento esperado p/ execução estrada pronta km /mes | E3: Execução estrada pronta km /ano (10 meses) | F3: possiveis serviços listado nas operações a executar | G3: Autorização ambiental | H3: Anotação de responsabilidade técnica, conforme conselho de classe
B4: 1 | C4: Adequação c/cascalho | D4: =((25+30)/2)/10 -> 2.75 | E4: =D4*10 -> 27.5 | F4: Todos | G4: x | H4: x
B5: 2 | C5: Readequação c/cascalho | D5: =((25+30)/2)/10 -> 2.75 | E5: =D5*10 -> 27.5 | F5: Todos | G5: x | H5: x | L5: =20/D5 -> 7.272727273
B6: 3 | C6: Manutenção s/cascalho (reconstrução e ou recuperação dos serviços) | D6: =50/10 -> 5 | E6: =D6*10 -> 50 | F6: Terraplenagem nº 03,04, 05 ou 06 ou 12,7,8,10,11, drenagem - 24 | H6: x
B7: 4 | C7: Melhoria c/cascalho em ptos criticos | D7: =100/10 -> 10 | E7: =D7*10 -> 100 | F7: Terraplenagem nº 03,04, 05 ou 06 ou 12,7,8,10,11, drenagem 13-27, cascalhamento 28-29 | G7: x | H7: x
B8: 5 | C8: Melhoria s/cascalho | D8: =150/10 -> 15 | E8: =D8*10 -> 150 | F8: Terraplenagem nº 03,04, 05 ou 06 ou 12,7,8,10,11, drenagem 13-27 | G8: x | H8: x
B11: Seguem as definições/conceitos. Cada projeto de estrada rural envolve subprojetos de (1) terraplenagem, (2) drenagem, (3) pavimentação, (4) desapropriações na faixa de domínio, nunca fizemos, e se necessário um (5) projeto para o licenciamento ambiental (corte de árvores e utilização de cascalheiras), cada projeto de estrada tem sua particularidade. ABERTURA DE ESTRADAS RURAIS: obra destinada a dar acesso aos lotes que estão sendo objeto de reforma agrária, permitindo assim o livre acesso dos moradores ao comércio, educação, saúde e cidadania. Utilizando –se de práticas para a Conservação de solos e consequentemente das estradas, com a construção de estruturas para captação e retenção de águas pluviais. ADEQUAÇÃO DE ESTRADAS RURAIS*: obras destinadas à execução de melhoramentos em estradas rurais de menor hierarquia funcional, possuindo superfície de rolamento “não pavimentada”, cujo objetivo é o de elevar seu padrão operacional. Inclui-se nessa modalidade de intervenção: Serviços de re-locação de parte de seu traçado; · Re-conformação de segmentos do greide; · Execução de camadas de reforço do sub-leito e/ou; · Revestimento primário. *Fonte: Estradas rurais Técnicas Adequadas de Manutenção. Florianópolis DER, 2003. 236 p. il. 30cm. READEQUAÇÃO DE ESTRADAS RURAIS: é uma estrada que já foi adequada no passado e fruto de manutenções realizadas de forma incorreta, erosões provocadas por propriedades lindeiras que não possui as práticas conservacionistas adequadas e conduzem água para as estradas MANUTENÇÃO DE ESTRADA RURAL: pode ser definido como amplo conjunto de atividades destinadas a assegurar um transporte seguro, econômico e confortável em uma estrada ou rede de estradas. Uma das finalidades primordiais da manutenção é evitar, ao máximo possível, a perda desnecessária do capital já investido, mediante a proteção física da estrutura básica e da superfície de rolamento da estrada. A manutenção deve evitar a deterioração precoce da estrutura das estradas e, por conseguinte, a necessidade de serviços de reconstrução. Inclui-se nessa definição, as atividades de manutenção corretiva rotineira e periódica. MELHORIA DE ESTRADA RURAL: Conjunto de operações que acrescentam as rodovias (estradas) existentes características novas, sem modificar as existentes ex. colocação de bueiros, sarjeteamento, bigodes, caixas de retenção. (fonte: DNER, glossário de termos técnicos rodoviários, Rio de janeiro, 1997, 266p. IPR. Publ.; 700). PAVIMENTAÇÃO DE ESTRADA RURAL: Estrutura construída após a terraplenagem e destinada, econômica e simultaneamente, em seu conjunto: a) A resistir e distribuir ao subleito os esforções verticais oriundos dos veículos; b) A melhorar as condições de rolamento quanto a comodidade e segurança; c) A resistir aos esforços horizontais que nela atuam tornando mais durável a superfície de rolamento. Fonte: NBR 7207/1982 Os tipos de revestimentos (materiais), que podem ser utilizados na pavimentação podem ser: FONTE: DNIT – IPR Manual de Pavimentação 3ª ED. – Rio de Janeiro 2006 274 P. (IPR. Publ., 719). http://www1.dnit.gov.br/arquivos_internet/ipr/ipr_new/manuais/Manual%20de%20Pavimenta%E7%E3o_05.12.06.pdf

Sheet Plan1.1 ORIENTAÇÕES PREENCHIMEN
A1: PROGRAMA ESTRADAS DA INTEGRAÇÃO PROJETO DE ADEQUAÇÃO, READEQUAÇÃO, MAUTENÇÃO E OU MELHORIAS DE ESTRADAS RURAIS MUNICIPAIS - CUSTEIO SOMENTE ÓLEO DIESEL COM BASE EM RTV - Relatório Técnico de Vistoria e Projetos Técnicos
A2: 1 . ORIENTAÇÕES PARA O PREENCHIMENTO DA PLANILHA
A4: 1.1 | B4: Todas as células com a cor AZUL devem ser preenchidas pelo MUNICÍPIO
A5: 1.2 | B5: Todas as células preenchidas de VERDE são resultados automáticos de fórmulas e NÃO PODEM SER MODIFICADAS. Caso haja necessidade de incluir novas linhas na planilha é importante verificar se as fórmulas estão contemplando todas as células, conferindo o Número e Letra na fórmula ao clicar nelas. Nesse caso, excepcionalmente, deve-se fazer a correção da fórmula para anular erros (por isso as células não foram bloqueadas).
A6: 1.3 | B6: A logomarca do município deve ser inserida dentro do quadro abaixo e a mesma será replicada em todas as páginas do plano de trabalho.
A7: 1.4 | B7: Caso a largura de alguma coluna precise ser modificada, para impressão não cortar a página, clicar em Exibir > Vizualização da Quebra de Página: arrastar a linha de quebra para contemplar toda a tabela. Depois Exibir > Normal, para voltar à visualização de planilha.
A8: 1.5 | B8: O valor de contrapartida municipal é obrigatória para todas as trasnferencias voluntárias, conforme Lei Federal- nº 14.133 e Decreto Estadual nº 10086, com base do Índice Ipardes de Desempenho Municipal, ano referencia 2021 (https://www.ipardes.pr.gov.br/Pagina/Indice-Ipardes-de-Desempenho-Municipal)
A9: 1.6 | B9: O plano de trabalho deve ser preenchido, conforme Lei Federal- nº 14.133/2021 e Decreto Estadual nº 10086/2022.
A11: 2 . ORIENTAÇÕES PARA INCLUSÃO DO PLANO DE TRABALHO NO E-PROTOCOLO
A13: 2.1 | B13: Para assinatura, há duas opções: a) Preferencialmente, salvar o documento em .pdf (selecionar todas as pastas da planilha antes de converter para que todas sejam incluídas no documento). Inserir no e-protocolo e assinar eletronicamente; b) Ou o documento pode ser impresso englobando todas as pastas do excel. Acessar: Arquivo> Imprimir> Configurações> Imprimir Toda a Pasta de Trabalho. Com o documento físico em mãos, após assinado, este será escaneado e salvo no formato pdf. Então pode ser inserido normalmente no e-protocolo.
A14: 2.2 | B14: Com o documento físico em mãos, após assinado, este será escaneado e salvo no formato pdf. Então pode ser inserido normalmente no e-protocolo.
A15: 2.3 | B15: Também deverá ser inserido no e-protocolo outra versão do Plano de Trabalho no formato excel, como anexo. A opção de inserir anexos está localizada logo antes da etapa de encaminhamento conforme exposto na imagem abaixo.
A19: 3 . ÍNDICE DE PASTAS DA PLANILHA
B21: Conteúdo
A22: 1 | B22: Orientações
A23: 2 | B23: 1. Dados Cadastrais do Município - Ao informar o Municipio na lista suspensa os dados - IPDM, CNPJ, Endereço, UF, CEP, Nome do Prefeito serão preenchidos automáricamente, informar demais dados.
B24: 2. Identificação do Objeto - Sua descrição será ajustado automáticamente quando informado na guia suspensa da planilha 2.3. Operações (Plan4 2.3. OPERAÇÕES)
B25: 2.1. Período de Vigência - informado automáticamente conforme extensão do trecho em 24 ou 36 meses.)
A26: 3 | B26: 2.2. Quadro Resumo (Total das Estradas Rurais/trechos indicados nos RTV’s, informar os nomes das estradas delimitada pelas coordenadas inicial e final em UTM)
A27: 4 | B27: 2.3. Operações (Plan4 2.3. OPERAÇÕES) em função do tipo de pavimentos informado através da guia suspensa na planilha ( Plan2 1.DADOS,2.OBJ e 2.1.Vigên), será disponibilizado automáticamente os possiveis serviços a serem projetados na (Plan4 2.3. OPERAÇÕES), podendo estas serem ajustadas conforme a necessidade. Deverá ser apresentado em separado as memorias de calculos e o respectivo termo de referência. O DMT - Distancia Média de Transporte dos materiais a serem trasnportados deve ser elaborado com base em tres possiveis fornecedores.
A28: 5 | B28: 3. Justificativa- Descrever detalhadamente sobre a necessidade da execução da Obra, custo e beneficio em conformidade com a planilha - Plan5 3. JUSTIFIC. e 4.BENEFIC.
B29: 4. Beneficiários elenca- los conforme Plan5 3. JUSTIFIC. e 4.BENEFIC.
A30: 6 | B30: 5. Definição e detalhamento das metas
B31: 6. Etapas de execução - Indicar todos os trechos realacionados na Planilha 3 - 2.2 (Quadro Resumo) - Divididos em Subtrechos- Etapas de 1.000,00 em 1.000,00 m, na quantidade que for necessária.
A32: 7 | B32: 7. Plano de Aplicação dos Recursos Financeiros 8. Capacidade instalada do municipio;
A33: 8 | B33: 9. Previsão de início e fim da execução do objeto (considerar como ponto inicial a publicação no DIOE-PR). Os trechos especificado na planilha Plan8 8.PREVISÃO e 9 CRONOGRAMA devem estar alinhados com a planilha Plan 6 5. METAS e 6.ETAPAS
B34: 10. Cronograma de desembolso (quando necessário ajustar o número de meses entre as parcelas)
A35: 9 | B35: 11. DO MONITORAMENTO, AVALIAÇÃO E DA PRESTAÇÃO DE CONTAS
A36: 10 | B36: 12. Documentos integrantes do plano de trabalho
B37: 12.1 Descrição dos documentos
B38: 12.2 Para obras ou serviços de engenharia e arquitetura.
A39: 11 | B39: 13. Declaração do Responsável Contábil pela Elaboração do Plano de Trabalho
B40: 14. Declaração do Responsável Técnico pela Elaboração do Plano de Trabalho
B41: 15. Declaração do Município
B42: 16. Assinatura do Gestor do Convênio pela SEAB (Chefe do NR)
B43: 17.1 e 17.2 Manifestação técnica do DEAGRO - sede
B44: 18. Aprovação pela SEAB
A45: FORMULÁRIO - PLANO DE TRABALHO VERSÃO 30-11-2023
A46: INSIRA DENTRO DO QUADRO A LOGO DO MUNICÍPIO
E47: LOGO

Sheet Plan2 1.DADOS,2.OBJ e 2.1.Vigên
C2: PLANO DE TRABALHO MELHORIA DA TRAFEGABILIDADE EM ESTRADAS RURAIS MUNICIPAIS ÓLEO DIESEL com base no RTV - Relatório Técnico de Vistoria e Projetos Técnicos
B4: 1. DADOS CADASTRAIS
B5: 1.1 DO CONCEDENTE
B7: Secretaria | C7: Secretaria da Agricultura e do Abastecimento
B8: CNPJ: | C8: 76.416.957/0001-85
B9: Endereço: | C9: Rua dos Funcionários nº 1559, Cabral | F9: Município: | G9: Curitiba
B10: UF: | C10: PR | D10: CEP: | E10: 80035-050 | F10: Telefone: | G10: (41) 3313-4000
B11: Contato: | C11: https://www.agricultura.pr.gov.br/Formulario/Fale-com-SEAB
B12: Secretário | C12: Norberto Anacleto Ortigara
B13: Decreto n.º | C13: 0009/2023 | E13: Cargo: | F13: Secretário de Estado da Agricultura e do Abastecimento - SEAB
B14: e-mail: | C14: nortigara@seab.pr.gov.br
B15: Obs.: LGPD - Lei Geral de Proteção de Dados Pessoais, Lei nº 13.709/2018, IPDM - (Índice Ipardes de Desempenho Municipal)
B16: 1.2 DO TOMADOR
B18: Município: | C18: Adrianópolis | F18: IPDM (IPARDES) | H18: =VLOOKUP(C18,Municipios!A:I,2,0) -> 0.648043026
B19: CNPJ: | C19: =VLOOKUP(C18,Municipios!A:I,5,0) -> 76.105.642/0001-17
B20: Endereço: | C20: =VLOOKUP(C18,Municipios!A:I,7,0) -> Av. Marechal Mascarenhas de Morães, 115, Centr
B21: UF: | C21: PR | D21: CEP: | E21: =VLOOKUP(C18,Municipios!A:I,8,0) -> 83.490-000 | F21: Telefone: | G21: XXXXXXX
B22: e-mail: | C22: XXXXXXXXXXX
B23: Prefeito | C23: =VLOOKUP(C18,Municipios!A:I,9,0) -> Vandir de Oliveira Rosa
B24: CPF - (LGPD*): | C24: XXXXXXXXX | E24: RG/Órgão Expedidor (LGPD*): | G24: XXXXXXXXX
B25: e-mail: | C25: XXXXXXXXX
B26: Obs.: LGPD - Lei Geral de Proteção de Dados Pessoais, Lei nº 13.709/2018, IPDM - (Índice Ipardes de Desempenho Municipal) | L26: Constitui objeto deste Convênio, a união de esforços dos partícipes para o desenvolvimento de ações que integram o Plano Paraná Mais Cidades III – PPMC III, voltadas ao Desenvolvimento Rural Sustentável em proveito, prioritariamente, do incremento da agricultura familiar, visando assegurar a trafegabilidades dos trechos de estradas rurais identificadas no item 2.2 - Quadro Resumo, mediante a aquisição de
B27: Banco: | C27: XXXXXXXXXX | L27: litros de óleo diesel para execução de serviços de | M27: em
B28: Agência: | C28: XXXXXXXXXX | E28: Conta Convênio: | F28: XXXXXXXXXX | L28: metros lineares, com largura média de
L29: m e uma àrea de pavimento de
B30: 2. IDENTIFICAÇÃO DO OBJETO | L30: m², consoantes ao Programa Estradas Rurais Integradas aos Princípios e Sistemas Conservacionistas - Estradas da Integração (Decreto nº 6.515/2012)
B31: =CONCATENATE(L26,M33,L27,E35,M27,L31,L28,L32,L29,L33,L30) -> Constitui objeto deste Convênio, a união de esforços dos partícipes para o desenvolvimento de ações que integram o Plano Paraná Mais Cidades III – PPMC III, voltadas ao Desenvolvimento Rural Sustentável em proveito, prioritariamente, do incremento da agricultura familiar, visando assegurar a trafegabilidades dos trechos de estradas rurais identificadas no item 2.2 - Quadro Resumo, mediante a aquisição de 4.300,42 litros de óleo diesel para execução de serviços de MANUTENÇÃO em 102.000,00 metros lineares, com largura média de 6 m e uma àrea de pavimento de 306.000,00 m², consoantes ao Programa Estradas Rurais Integradas aos Princípios e Sistemas Conservacionistas - Estradas da Integração (Decreto nº 6.515/2012) | L31: =TEXT(E36,"#.##0.000,00") -> 102.000,00
L32: 6
L33: =TEXT(E38,"#.##0.000,00") -> 306.000,00 | M33: =TEXT('Plan4 2.3. OPERAÇÕES'!Q54,"#.##0.000,00") -> 4.300,42
B35: Tipo de Serviço | E35: MANUTENÇÃO | L35: Tipos de Servíço | M35: Valor
B36: Extensão (m) | E36: ='Plan3 2.2. QUADRO RESUMO'!H18 -> 102000 | L36: ADEQUAÇÃO | M36: 500000
B37: Média Largura (m) | E37: ='Plan3 2.2. QUADRO RESUMO'!J18 -> 3 | L37: READEQUAÇÃO | M37: 500000
B38: Área dos serviços (m²) | E38: ='Plan3 2.2. QUADRO RESUMO'!M18 -> 306000 | L38: MELHORIAS | M38: 500000
B39: Quantidade de óleo diesel (litros) | E39: ='Plan4 2.3. OPERAÇÕES'!Q54 -> 4300.423343 | L39: MANUTENÇÃO | M39: 500000
L40: MANUTENÇÃO E MELHORIAS | M40: 500000
B41: 2.1. Prazo de Vigência e Execução | L41: ADEQUAÇÃO, READEQUAÇÃO, MANUTENÇÃO E MELHORIA | M41: 500000
B43: Vigência: | E43: meses
B45: Execução: | D45: =D43-6 -> -6 | E45: meses
B46: Obs. A data de inicio das vigencias estara previsto no Termo de convênio
L58: Coluna1 | M58: Coluna2
L59: RECAPE - CBUQ | M59: 2000000
L60: PARALELEPIPEDO | M60: 1680000
L61: PAVER | M61: 1100000
L62: TSS - Tratamento Superficial Simples | M62: 600000
L63: TSD - Tratamento Superficial Duplo | M63: 700000
L64: TST - Tratamento Superficial Triplo | M64: 800000

Sheet Plan3 2.2. QUADRO RESUMO
F2: PLANO DE TRABALHO MELHORIA DA TRAFEGABILIDADE EM ESTRADAS RURAIS MUNICIPAIS ÓLEO DIESEL com base no RTV - Relatório Técnico de Vistoria e Projetos Técnicos
B4: 2.2. Quadro Resumo (Total das Estradas Rurais/trechos indicados nos RTV’s*)
B6: nº | C6: Estrada Rural/ Nome/ Trechos | D6: Tipo de Serviço (ADEQUAÇÃO / READEQUAÇÃO / MANUTENÇÃO / MELHORIA) | E6: Coordenadas UTM - SAD-69 | H6: Extensão total(m) | I6: Extensão cascalhamento (m) | J6: Larg. total (m) | K6: Larg. Cascalhamento (m) | L6: Espessura cascalho compactado (m) | M6: Área total (m²) | N6: Área cascalhada(m²)
E7: FUSO | F7: Início Lat./Long. | G7: Término Lat./Long.
B8: 1 | C8: xxx | E8: zz | F8: vvv | G8: bbb | H8: 10000 | I8: 1000 | J8: 7 | K8: 6 | L8: 0.15 | M8: =H8*J8 -> 70000 | N8: =I8*K8 -> 6000
B9: 2 | H9: 12000 | I9: 1200 | J9: 3 | K9: 2 | L9: 0.07 | M9: =H9*J9 -> 36000 | N9: =I9*K9 -> 2400
B10: 3 | H10: 80000 | I10: 800 | J10: 2.5 | K10: 2 | L10: 0.07 | M10: 200000 | N10: 1600
B11: 4 | M11: 0 | N11: 0
B12: 5 | M12: 0 | N12: 0
B13: 6 | M13: 0 | N13: 0
B14: 7 | M14: 0 | N14: 0
B15: 8 | M15: 0 | N15: 0
B16: 9 | M16: 0 | N16: 0
B17: 10 | M17: 0 | N17: 0
B18: TOTAL/m. | H18: =SUM(H8:H17) -> 102000 | I18: =SUM(I8:I17) -> 3000 | J18: =SUMPRODUCT(H8:H17,J8:J17)/SUM(H8:H17) -> 3 | K18: =SUMPRODUCT(I8:I17,K8:K17)/SUM(I8:I17) -> 3.333333333 | L18: =SUMPRODUCT(I8:I17,L8:L17)/SUM(I8:I17) -> 0.09666666667 | M18: =SUM(M8:M17) -> 306000 | N18: =SUM(N8:N17) -> 10000
B19: TOTAL/Km | H19: =H18/1000 -> 102
B21: *Relatórios Técnico de Vistorias (01 por trecho/estrada rural)

Sheet Plan4 2.3. OPERAÇÕES
D2: PLANO DE TRABALHO MELHORIA DA TRAFEGABILIDADE EM ESTRADAS RURAIS MUNICIPAIS ÓLEO DIESEL com base no RTV - Relatório Técnico de Vistoria e Projetos Técnicos | S2: Contrapartida: | T2: Municipio | U2: IPDM | V2: % DA CONTRAPARTDIDA
T3: ='Plan2 1.DADOS,2.OBJ e 2.1.Vigên'!C18 -> Adrianópolis | U3: =VLOOKUP(T3,Municipios!A:C,2,0) -> 0.648043026 | V3: =VALUE(VLOOKUP(U3,Municipios!B:D,2,0)) -> 0.05
B5: 2.3. Operações a serem executadas nos trechos (referência utilizada de rendimentos: Tabelas de composição de custos SEIL/DER/PR). E excepcionalmente SINAPI E DNIT, nos casos de serviços não contemplados pela tabeLa do DER-Pr | T5: ANP (DD/MM/AAAA) | V5: 2022-10-01
B6: SITE FONTE: | E6: https://www.gov.br/anp/pt-br/assuntos/precos-e-defesa-da-concorrencia/precos | T6: OUTRO ESPECIFICAR (DD/MM/AAAA)
B7: Tipo Serviço: | E7: ='Plan2 1.DADOS,2.OBJ e 2.1.Vigên'!E35 -> MANUTENÇÃO | I7: Unid. | J7: Qtd. | K7: Rodovia pavimentada DMT - km | L7: Rodovia não pavimentada DMT - km | M7: MÁQUINA (referência) E OUTROS A UTILIZAR | N7: RENDIMENTO ESPERADO | O7: Nº DE HORAS MÁQUINAS E CAMINHÕES / outros | P7: média de consumo de OD L/ HORA | Q7: N° DE LITROS OD -Óleo diesel | R7: CUSTO ÓLEO DIESEL - ANP EM .../.../202...(R$) e outros custos | T7: SEAB | U7: CONTRAPARTIDA (MUNICÍPIO)²
R8: UNITÁRIO | S8: TOTAL | T8: R$ | U8: FINANCEIRA R$ | V8: FÍSICA
B9: Nº | C9: Natureza de despesa | D9: Código DER PR | E9: Itens | V9: SERVIÇOS | W9: BENS
B10: 01-TERRAPLENAGEM | N10: =CONCATENATE("SubTotal ",B10) -> SubTotal 01-TERRAPLENAGEM | Q10: =SUM(Q11:Q26) -> 2748.50425 | S10: =SUM(S11:S26) -> 13770.00629 | T10: 13081.50598 | U10: 688.5003145 | V10: 0 | W10: 0
B11: 1 | C11: 3.3.90.30.03 | D11: 40115 | E11: Escavação carga e transporte de material de 1ª categoria 0 - 50 m | I11: m³ | J11: 1000 | K11: 0 | L11: 0 | M11: Motoniveladora 120 H | N11: 138.25 | O11: =J11/N11*0.2 -> 1.446654611 | P11: 20.41 | Q11: =O11*P11 -> 29.52622061 | R11: 5.01 | S11: =Q11*R11 -> 147.9263653 | T11: =S11-U11-V11-W11 -> 140.530047 | U11: =S11*$V$3 -> 7.396318264 | V11: 0 | W11: 0
I12: m³ | K12: 0 | L12: 0 | M12: Trator de lâmina D-6 | O12: =J11/N11 -> 7.233273056 | P12: 16.61 | Q12: =O12*P12 -> 120.1446655 | R12: =$R$11 -> 5.01 | S12: =Q12*R12 -> 601.924774 | T12: =S12-U12-V12-W12 -> 571.8285353 | U12: 30.0962387 | V12: 0 | W12: 0
B13: 2 | C13: =$C$11 -> 3.3.90.30.03 | D13: 40102 | E13: Desmatamento e limpeza até Ø 30 cm | I13: m² | J13: 1000 | K13: 0 | L13: 0 | M13: Trator de lâmina D-6 | N13: 463.68 | O13: =J13/N13 -> 2.156659765 | P13: 16.61 | Q13: 35.8221187 | R13: =$R$11 -> 5.01 | S13: 179.4688147 | T13: =S13-U13-V13-W13 -> 170.495374 | U13: 8.973440735 | V13: 0 | W13: 0
B14: 3 | C14: =$C$11 -> 3.3.90.30.03 | D14: 40108 | E14: Lombadas | I14: m³ | J14: 1000 | K14: 0 | L14: 0 | M14: Carregador frontal pneus 924 – G | N14: 110 | O14: =J14/N14 -> 9.090909091 | P14: 15.92 | Q14: 144.7272727 | R14: 5.01 | S14: 725.0836364 | T14: 688.8294545 | U14: 36.25418182 | V14: 0 | W14: 0
B15: 4 | C15: 3.3.90.30.03 | D15: 42110 | E15: Caixa de retenção | I15: m³ | J15: 1000 | K15: 0 | L15: 0 | M15: Retroescavadeira JCB 4x4 | N15: 21.31 | O15: =J15/N15 -> 46.92632567 | P15: 8.5 | Q15: 398.8737682 | R15: 5.01 | S15: 1998.357579 | T15: 1898.4397 | U15: 99.91787893 | V15: 0 | W15: 0
B16: 5 | C16: 3.3.90.30.03 | D16: 401060 | E16: Regularização de leito/patrolamento | I16: m² | J16: 1000 | K16: 0 | L16: 0 | M16: Motoniveladora 120 H | N16: 1742 | O16: =J16/N16 -> 0.5740528129 | P16: 20.41 | Q16: 11.71641791 | R16: 5.01 | S16: 58.69925373 | T16: 55.76429104 | U16: 2.934962687 | V16: 0 | W16: 0
B17: 6 | C17: 3.3.90.30.03 | D17: 51103 | E17: Regularização, conformação e compactação visual do leito | I17: m² | J17: 1000 | K17: 0 | L17: 0 | M17: Motoniveladora 120 H | N17: 688.54 | O17: =J17/N17*0.34 -> 0.4937984721 | P17: 20.41 | Q17: 10.07842682 | R17: 5.01 | S17: 50.49291835 | T17: 47.96827243 | U17: 2.524645917 | V17: 0 | W17: 0
C18: 3.3.90.30.03 | K18: 0 | L18: 0 | M18: Rolo compactador CA - 25 | O18: =J17/N17 -> 1.452348447 | P18: 11.59 | Q18: 16.83271851 | R18: 5.01 | S18: 84.33191971 | T18: 80.11532373 | U18: 4.216595986 | V18: 0 | W18: 0
B19: 7 | C19: 3.3.90.30.03 | D19: 40107 | E19: Retaludamento | I19: m² | J19: 1000 | K19: 0 | L19: 0 | M19: Motoniveladora 120 H | N19: 650 | O19: =J19/N19 -> 1.538461538 | P19: 20.41 | Q19: 31.4 | R19: 5.01 | S19: 157.314 | T19: 149.4483 | U19: 7.8657 | V19: 0 | W19: 0
B20: 8 | C20: 3.3.90.30.03 | D20: 40113 | E20: Escavação para saída de água | I20: m³ | J20: 1000 | K20: 0 | L20: 0 | M20: Retroescavadeira JCB 4x4 | N20: 37.3 | O20: =J20/N20 -> 26.80965147 | P20: 8.5 | Q20: 227.8820375 | R20: 5.01 | S20: 1141.689008 | T20: 1084.604558 | U20: 57.0844504 | V20: 0 | W20: 0
B21: 9 | C21: 3.3.90.30.03 | D21: 40101 | E21: Destocamento árvores Ø > 30cm | I21: unidade | J21: 1000 | K21: 0 | L21: 0 | M21: Trator de lâmina D-6 | N21: 12 | O21: 83.33333333 | P21: 16.61 | Q21: 1384.166667 | R21: 5.01 | S21: 6934.675 | T21: 6587.94125 | U21: 346.73375 | V21: 0 | W21: 0
B22: 10 | C22: 3.3.90.30.03 | D22: 40115 | E22: Bigodes/Sangradouros | I22: m³ | J22: 1000 | K22: 0 | L22: 0 | M22: Motoniveladora 120 H | N22: 138.25 | O22: =J22/N22*0.2 -> 1.446654611 | P22: 20.41 | Q22: 29.52622061 | R22: 5.01 | S22: 147.9263653 | T22: 140.530047 | U22: 7.396318264 | V22: 0 | W22: 0
C23: 3.3.90.30.03 | K23: 0 | L23: 0 | M23: Trator de lâmina D-6 | O23: =J22/N22 -> 7.233273056 | P23: 16.61 | Q23: 120.1446655 | R23: 5.01 | S23: 601.924774 | T23: 571.8285353 | U23: 30.0962387 | V23: 0 | W23: 0
B24: 11 | C24: 3.3.90.30.03 | D24: OPÇÃO 2 PÁ | E24: Bigodes/Sangradouros | I24: m³ | J24: 1000 | K24: 0 | L24: 0 | M24: Carregador frontal pneus 924 – G | N24: 110 | O24: =J24/N24 -> 9.090909091 | P24: 15.92 | Q24: 144.7272727 | R24: 5.01 | S24: 725.0836364 | T24: 688.8294545 | U24: 36.25418182 | V24: 0 | W24: 0
B25: 12 | C25: 3.3.90.30.03 | D25: 51113 | E25: Escarificação, conformação e compactação do subleito | I25: m² | J25: 1000 | K25: 0 | L25: 0 | M25: Motoniveladora 120 H | N25: 417.3 | O25: =(J25/N25)*0.31 -> 0.7428708363 | P25: 20.41 | Q25: 15.16199377 | R25: 5.01 | S25: 75.96158879 | T25: 72.16350935 | U25: 3.798079439 | V25: 0 | W25: 0
C26: 3.3.90.30.03 | K26: 0 | L26: 0 | M26: Rolo compactador CA - 25 | O26: =J25/N25 -> 2.396357537 | P26: 11.59 | Q26: 27.77378385 | R26: 5.01 | S26: 139.1466571 | T26: 132.1893242 | U26: 6.957332854 | V26: 0 | W26: 0
B27: 02-DRENAGEM | N27: =CONCATENATE("SubTotal ",B27) -> SubTotal 02-DRENAGEM | Q27: =SUM(Q28:Q42) -> 274.725064 | S27: =SUM(S28:S42) -> 9942.32637 | T27: =SUM(T28:T42) -> 1307.553942 | U27: 68.81862852 | V27: 8565.9538 | W27: 0
B28: 13 | C28: =$C$11 -> 3.3.90.30.03 | D28: 60760 | E28: Assentamento de tubos 0,30 m sem berço | I28: m | J28: 10 | K28: 0 | L28: 0 | M28: Retroescavadeira JCB 4x4 | N28: 10 | O28: =J28/N28 -> 1 | P28: 8.5 | Q28: 8.5 | R28: =$R$11 -> 5.01 | S28: =Q28*R28 -> 42.585 | T28: 40.45575 | U28: =S28*$V$3 -> 2.12925 | V28: 0 | W28: 0
B29: 14 | C29: 3.3.90.30.03 | D29: 60301 | E29: Assentamento de tubos 0,40 m sem berço | I29: m | J29: 10 | K29: 0 | L29: 0 | M29: Retroescavadeira JCB 4x4 | N29: 10 | O29: =J29/N29 -> 1 | P29: 8.5 | Q29: 8.5 | R29: 5.01 | S29: =Q29*R29 -> 42.585 | T29: 40.45575 | U29: 2.12925 | V29: 0 | W29: 0
B30: 15 | C30: 3.3.90.30.03 | D30: 60302 | E30: Assentamento de tubos 0,60 m sem berço | I30: m | J30: 10 | K30: 0 | L30: 0 | M30: Retroescavadeira JCB 4x4 | N30: 6 | O30: 1.666666667 | P30: 8.5 | Q30: 14.16666667 | R30: 5.01 | S30: 70.975 | T30: 67.42625 | U30: 3.54875 | V30: 0 | W30: 0
B31: 16 | C31: 3.3.90.30.03 | D31: 60304 | E31: Assentamento de tubos 0,80 m sem berço | I31: m | J31: 10 | K31: 0 | L31: 0 | M31: Retroescavadeira JCB 4x4 | N31: 4 | O31: 2.5 | P31: 8.5 | Q31: 21.25 | R31: 5.01 | S31: 106.4625 | T31: 101.139375 | U31: 5.323125 | V31: 0 | W31: 0
B32: 17 | C32: 3.3.90.30.03 | D32: 61100 | E32: Assentamento de tubos 1,00 m sem berço | I32: m | J32: 10 | K32: 0 | L32: 0 | M32: Escav.Hidr. EC – 140 | N32: 4 | O32: 2.5 | P32: 14 | Q32: 35 | R32: 5.01 | S32: 175.35 | T32: 166.5825 | U32: 8.7675 | V32: 0 | W32: 0
B33: 18 | C33: Serviço/Município | D33: 60110 | E33: Apiloamento manual | I33: m³ | J33: =J28*0.93+J29*0.974+J30*1.407+J31*2.197+J32*2.615 -> 81.23 | K33: 0 | L33: 0 | M33: Um e meio homem | N33: 1.55 | O33: 52.40645161 | P33: 0 | Q33: 0 | R33: 47.36 | S33: =J33*R33 -> 3847.0528 | T33: =S33-U33-V33-W33 -> 0 | U33: 0 | V33: =S33 -> 3847.0528 | W33: 0
B34: 19 | C34: 3.3.90.30.03 | D34: 60760 | E34: Assentamento de tubos 0,30 m sem berço - Transporte - peso unitário -0,097ton. | I34: ton. | J34: =TRUNC(J28*0.097,2) -> 0.97 | K34: 10 | L34: 10 | M34: CAMINHÃO BASCULANTE - 10,00 m³ ou 15,00 ton. | N34: =J34/O34 -> 15 | O34: =((J34/15)*(K34+L34))/20 -> 0.06466666667 | P34: 15 | Q34: 0.97 | R34: 5.01 | S34: 4.8597 | T34: 4.616715 | U34: 0.242985 | V34: 0 | W34: 0
B35: 20 | C35: 3.3.90.30.03 | D35: 60301 | E35: Assentamento de tubos 0,40 m sem berço - Transporte - peso unitário -0,110ton. | I35: ton. | J35: =TRUNC(J29*0.11,2) -> 1.1 | K35: 10 | L35: 10 | M35: CAMINHÃO BASCULANTE - 10,00 m³ ou 15,00 ton. | N35: =J35/O35 -> 15 | O35: =((J35/15)*(K35+L35))/20 -> 0.07333333333 | P35: 15 | Q35: 1.1 | R35: 5.01 | S35: 5.511 | T35: 5.23545 | U35: 0.27555 | V35: 0 | W35: 0
B36: 21 | C36: 3.3.90.30.03 | D36: 60302 | E36: Assentamento de tubos 0,60 m sem berço - Transporte - peso unitário - 0,390 ton. | I36: ton. | J36: =TRUNC(J30*0.39,2) -> 3.9 | K36: 10 | L36: 10 | M36: CAMINHÃO BASCULANTE - 10,00 m³ ou 15,00 ton. | N36: 15 | O36: 0.26 | P36: 15 | Q36: 3.9 | R36: 5.01 | S36: 19.539 | T36: 18.56205 | U36: 0.97695 | V36: 0 | W36: 0
B37: 22 | C37: 3.3.90.30.03 | D37: 60304 | E37: Assentamento de tubos 0,80 m sem berço - Transporte - peso unitário - 0,670 ton. | I37: ton. | J37: =TRUNC(J31*0.67,2) -> 6.7 | K37: 10 | L37: 10 | M37: CAMINHÃO BASCULANTE - 10,00 m³ ou 15,00 ton. | N37: 15 | O37: 0.4466666667 | P37: 15 | Q37: 6.7 | R37: 5.01 | S37: 33.567 | T37: 31.88865 | U37: 1.67835 | V37: 0 | W37: 0
B38: 23 | C38: 3.3.90.30.03 | D38: 61100 | E38: Assentamento de tubos 1,00 m sem berço - Transporte - peso unitário - 1,000ton. | I38: ton. | J38: =TRUNC(J32*1,2) -> 10 | K38: 10 | L38: 10 | M38: CAMINHÃO BASCULANTE - 10,00 m³ ou 15,00 ton. | N38: 15 | O38: 0.6666666667 | P38: 15 | Q38: 10 | R38: 5.01 | S38: 50.1 | T38: 47.595 | U38: 2.505 | V38: 0 | W38: 0
B39: 24 | C39: 3.3.90.30.03 | D39: 40114 | E39: Escavação de vala lateral rasa com motoniveladora | I39: m | J39: 2000 | K39: 0 | L39: 0 | M39: Motoniveladora 120 H | N39: 735 | O39: =J39/N39 -> 2.721088435 | P39: 20.41 | Q39: 55.53741497 | R39: 5.01 | S39: 278.242449 | T39: 264.3303265 | U39: 13.91212245 | V39: 0 | W39: 0
B40: 25 | C40: 3.3.90.30.03 | D40: 60303 | E40: Escavação de bueiros e valas de drenagem 1a. cat. | I40: m³ | J40: =(J28*1+J29*1.1+J30*1.69+J31*2.7+J32*3.4) -> 98.9 | K40: 0 | L40: 0 | M40: Escav.Hidr. CX – 210 | N40: 27.74 | O40: 3.565248738 | P40: 14 | Q40: 49.91348234 | R40: 5.01 | S40: 250.0665465 | T40: 237.5632192 | U40: 12.50332733 | V40: 0 | W40: 0
B41: 26 | C41: Serviço/Município | D41: 60370 | E41: Enrocamento pedra de mão arrumada | I41: m³ | J41: =J28*0.2117+J29*0.2577+J30*0.3549+J31*0.6884+J32*0.8548 -> 23.675 | K41: 0 | L41: 0 | M41: Dois homens | N41: 1 | O41: 23.675 | P41: 0 | Q41: 0 | R41: 199.32 | S41: =J41*R41 -> 4718.901 | T41: =S41-U41-V41-W41 -> 0 | U41: 0 | V41: =S41 -> 4718.901 | W41: 0
B42: 27 | C42: 3.3.90.30.03 | D42: 97230 | E42: Enrocamento pedra de mão arrumada - transporte | I42: ton. | J42: =J41*1.98 -> 46.8765 | K42: 10 | L42: 10 | M42: CAMINHÃO BASCULANTE - 10,00 m³ ou 15,00 ton. | N42: =J42/O42 -> 11.88 | O42: =((J42/11.88)*(K42+L42))/20 -> 3.945833333 | P42: 15 | Q42: 59.1875 | R42: 5.01 | S42: 296.529375 | T42: 281.7029062 | U42: 14.82646875 | V42: 0 | W42: 0
B43: 03-CASCALHAMENTO E ATERROS | N43: =CONCATENATE("SubTotal ",B43) -> SubTotal 03-CASCALHAMENTO E ATERROS | Q43: =SUM(Q44:Q47) -> 1277.19403 | S43: =SUM(S44:S47) -> 6398.74209 | T43: =SUM(T44:T47) -> 6078.804985 | U43: 319.9371045 | V43: 0 | W43: 0
B44: 28 | C44: =$C$11 -> 3.3.90.30.03 | D44: 45201 | E44: Cascalhamento - (corte, carregamento, espalhamento e compactação)+aterros | I44: m³ | J44: =1000*6*0.15 -> 900 | K44: 0 | L44: 0 | M44: ESCAVADEIRA HIDRÁULICA | N44: 107.2 | O44: =J44/N44 -> 8.395522388 | P44: 14 | Q44: 117.5373134 | R44: =$R$11 -> 5.01 | S44: 588.8619403 | T44: 559.4188433 | U44: =S44*$V$3 -> 29.44309701 | V44: 0 | W44: 0
C45: 3.3.90.30.03 | K45: 0 | L45: 0 | M45: MOTONIVELADORA | O45: =J44/N44 -> 8.395522388 | P45: 20.41 | Q45: 171.3526119 | R45: 5.01 | S45: 858.4765858 | T45: 815.5527565 | U45: =S45*$V$3 -> 42.92382929 | V45: 0 | W45: 0
C46: 3.3.90.30.03 | K46: 0 | L46: 0 | M46: ROLO COMPACTADOR | O46: =J44/N44 -> 8.395522388 | P46: 11.59 | Q46: 97.30410448 | R46: 5.01 | S46: 487.4935634 | T46: 463.1188853 | U46: =S46*$V$3 -> 24.37467817 | V46: 0 | W46: 0
B47: 29 | C47: 3.3.90.30.03 | D47: 97210 | E47: Transporte do cascalho e/ou material para aterro ( se o material para aterro for de outro local deve ser calculado em separado) | I47: TONELADAS | J47: =J44*1.98 -> 1782 | K47: 10 | L47: 10 | M47: CAMINHÃO BASCULANTE - 10,00 m³ ou 15,00 ton. | N47: =J47/O47 -> 30 | O47: =((J47/15)*(K47+L47))/40 -> 59.4 | P47: 15 | Q47: 891 | R47: 5.01 | S47: 4463.91 | T47: 4240.7145 | U47: =S47*$V$3 -> 223.1955 | V47: 0 | W47: 0
B48: 04-IDENTIFICAÇÃO DA OBRA | N48: =CONCATENATE("SubTotal ",B48) -> SubTotal 04-IDENTIFICAÇÃO DA OBRA | Q48: =Q49+Q50 -> 0 | S48: =S49+S50 -> 2775.73 | T48: =T49+T50 -> 0 | U48: 2775.73 | V48: 0 | W48: 0
B49: 30 | C49: Município | D49: SINAPI - 103694 | E49: Suporte de madeira 3"x3" p/ placa sinalização, h=3,00m | I49: ud | J49: 2 | K49: 0 | L49: 0 | M49: 0 | N49: 0 | O49: 0 | P49: 0 | Q49: 0 | R49: 167.69 | S49: =J49*R49 -> 335.38 | T49: 0 | U49: =S49 -> 335.38 | V49: 0 | W49: 0
B50: 31 | C50: Município | D50: SINAPI - 103689 | E50: Placa de obra(para construção civil) em chapa galvanizada nº 22, adesivada 3,00x1,50 m | I50: m² | J50: 4.5 | K50: 0 | L50: 0 | M50: 0 | N50: 0 | O50: 0 | P50: 0 | Q50: 0 | R50: 542.3 | S50: =J50*R50 -> 2440.35 | T50: 0 | U50: =S50 -> 2440.35 | V50: 0 | W50: 0
B51: 05-TOPOGRAFIA | N51: =CONCATENATE("SubTotal ",B51) -> SubTotal 05-TOPOGRAFIA | Q51: =Q52+Q53 -> 0 | S51: =S52+S53 -> 41.89 | T51: =T52+T53 -> 0 | U51: 0 | V51: 41.89 | W51: 0
B52: 32 | C52: Serviço/Município | D52: SINAPI - 88253 | E52: AUXILIAR DE TOPÓGRAFO COM ENCARGOS COMPLEMENTARES | I52: h | J52: 1 | K52: 0 | L52: 0 | M52: 0 | N52: 0 | O52: 0 | P52: 0 | Q52: 0 | R52: 13.82 | S52: =J52*R52 -> 13.82 | T52: =S52-U52-V52-W52 -> 0 | U52: 0 | V52: =S52 -> 13.82 | W52: 0
B53: 33 | C53: Serviço/Município | D53: SINAPI - 90781 | E53: TOPOGRAFO COM ENCARGOS COMPLEMENTARES | I53: h | J53: 1 | K53: 0 | L53: 0 | M53: 0 | N53: 0 | O53: 0 | P53: 0 | Q53: 0 | R53: 28.07 | S53: =J53*R53 -> 28.07 | T53: =S53-U53-V53-W53 -> 0 | U53: 0 | V53: =S53 -> 28.07 | W53: 0
B54: TOTAIS - GERAL | Q54: =Q10+Q27+Q43+Q48+Q51 -> 4300.423343 | S54: =S10+S27+S43+S48+S51 -> 32928.69475 | T54: =T10+T27+T43+T48+T51 -> 20467.8649 | U54: =U10+U27+U43+U48+U51 -> 3852.986048 | V54: =V10+V27+V43+V48+V51 -> 8607.8438 | W54: =W10+W27+W43+W48+W51 -> 0
B55: Obs.:
B56: 1 - Os quantitativos devem ser levandados a partir de projetos técnicos especificos ou metodologia expedita RTV - Relatório Técnico de Vistoria; 2 - As operações previstas neste plano de trabalho foram extraidas do orçamento do projeto, parte integrande deste plano de trabalho 3 - Apresentar memoria de cálculos do TRANSPORTE, e da CONTRAPARTIDA FISICA/SERVIÇOS. 4 - Ex . cod. de orçamento: Obra de Pavimentação de Estrada Rural. 4490.51.04 – Obras e Instalações (51) – Obras Rodoviárias de Domínio Público (04). 5 - Quando o municipio participar com contrapartida fisica não existe natureza de despesa (tubos, mão de obra para colocação de tubos, enrocamento de pedra de mão arrumada, topógrafia, etc). Deverá apresentar os memoriais de calculos e qual sera o serviço e/ou bem. 6 - Não cabe aplicação de BDI no caso de repasse de recursos para a aquisição de óleo diesel.
C58: Resumo fisico e financeiro
C59: SEAB | E59: Contrapartida Município | J59: Valor Global
C60: % | D60: Total (R$) | E60: % | F60: Dinheiro (R$) | G60: Fisico (R$) | I60: Total | J60: % | K60: (R$)
G61: SERVIÇOS | H61: BENS
C62: =D62/K62 -> 0.6215814219 | D62: =K62-I62 -> 20467.8649 | E62: =I62/K62 -> 0.3784185781 | F62: =U54 -> 3852.986048 | G62: =V54 -> 8607.8438 | H62: =W54 -> 0 | I62: =F62+G62+H62 -> 12460.82985 | J62: 1 | K62: =S54 -> 32928.69475
B63: [1] O valor unitário deverá ter sido obtido por meio de orçamento devidamente detalhado em planilhas nos termos dos arts. 368 a 372 e dos arts. 484 a 486 do Decreto Estadual 10.086/2022
B64: [2] Art. 669, § 1º. I, II e III, estipulou percentuais fixados de acordo com a capacidade financeira do convenente, com base nos dados do IPARDES

Sheet Plan5 3. JUSTIFIC. e 4.BENEFIC.
D2: PLANO DE TRABALHO MELHORIA DA TRAFEGABILIDADE EM ESTRADAS RURAIS MUNICIPAIS ÓLEO DIESEL com base no RTV - Relatório Técnico de Vistoria e Projetos Técnicos
B4: 3. RAZÕES PARA CELEBRAÇÃO - JUSTIFICATIVA
B6: 1. Discorrer as razões que justificam a celebração do instrumento, caracterizando (evidenciando) e indicando, entre outras: a) interesses recíprocos entre a Seab e o Município, e o atendimento da(s) necessidade (s) da comunidade (s) a serem benficiadas; b) relação entre a projeto técnico apresentado, operações a serem executadas e objetivos do plano, programa, projeto ou proposta estadual ou municipal; c) qualificação do público alvo; d) problemas a serem resolvidos; e) resultados esperados; f) Índice Desempenho Municipal (IDM/Ipardes) ou IDH - posição do Município em relação à média do Estado, ...; g) VBP - Principais produtos, posição do Município em relação à média do Estado, ...; h) Proporção de agricultores familiares em relação ao total de produtores/agricultores do município; i) Famílias do meio rural abaixo da linha de pobreza e/ou inscritas no CadUnico; j) Estrutura fundiário do município; k)Outras informações relevantes.
B8: 4. BENEFICIÁRIOS
B10: Nome da(s) comunidade(s) | E10: Quantidade Usuários ( *)
E11: Diretos | F11: Indiretos
G12: =IF(B12<>"",1,0) -> 0
G13: 0
G14: 0
G15: 0
G16: 0
G17: 0
G18: 0
G19: 0
G20: 0
G21: 0
G22: 0
G23: 0
G24: 0
G25: 0
G26: 0
G27: 0
B28: Total de Comunidades: | E28: =SUM(G12:G27) -> 0
B29: Subtotais - usuários | E29: =SUM(E12:E27) -> 0 | F29: =SUM(F12:F27) -> 0
B30: Total geral de usuários | E30: =E29+F29 -> 0
B31: (*) Os beneficiários diretos são o público-alvo definido, os quais o projeto terá um impacto social direto. Beneficiários indiretos recebem impactos positivos do projeto.

Sheet Plan6 5.MET_FAS_ETA_CRON_6.METO
B6: 5. DEFINIÇÃO E DETALHAMENTO DAS METAS COM AS FASES E ETAPAS DE EXECUÇÃO E O CRONOGRAMA DE FISICO/ FINANCEIRO DA EXECUÇÃO
B9: =CONCATENATE("Meta: Melhoria da trafegabilidade, por meio da execução de serviços de ", O9,", com ",O10," m²") -> Meta: Melhoria da trafegabilidade, por meio da execução de serviços de MANUTENÇÃO, com 75.600,00 m² | O9: ='Plan2 1.DADOS,2.OBJ e 2.1.Vigên'!E35 -> MANUTENÇÃO
B10: Fases | D10: Etapa | E10: Especificação | F10: Indicador Físico | H10: Custo (R$) | J10: Período de execução | L10: Responsável | M10: Instrumentos de avaliação do cumprimento da fase ou etapa | O10: ='[1]Plan2 1.DADOS,2.OBJ e 2.1.Vigên'!L33 -> 75.600,00
B11: nº | C11: Descrição | F11: Unidade | G11: Quantidade | H11: Unitário - (R$) | I11: Total (R$) | J11: Inicio - meses | K11: Final - após a publicação DIOE
B12: 1 | C12: Contratação de empresa para fornecimento de combustível - Óleo Diesel - OD | D12: 1 | E12: Licitação | F12: Litros | G12: 0 | H12: 0 | I12: 0 | J12: A partir da publicação no DIOE | K12: até 4 meses após a publicação | L12: Município | M12: Processo completo de licitação, onde consta a empresa vencedora.
D13: 2 | E13: Liberação da primeira parcela dos recursos | L13: SEAB | M13: Publicação do Termo de Homologação da Licitação ser disponibilizado. Em caso de adesão (carona) a outro processo licitatório, apresentar contrato assinado e a carta de autorização do administrador da ata assinada.
D14: 3 | E14: Contratação | L14: Município | M14: Contrato assinado com a empresa vencedora e publicação em diário oficial.
D15: 4 | E15: Emissão da ordem de fornecimento | M15: Conforme especificado no contrato
B16: 2 | C16: Execução dos serviços previstos em projeto | D16: 2 | E16: SERVIÇOS PRELIMINARES | F16: m | G16: 0 | H16: # | I16: # | J16: 4º meses após a publicação | K16: até o prazo final da execução | L16: Município | M16: Serviços executados conforme previsto nos RTV - relatório técnico de vistoria e projetos e em consonãncia com o cronograma de execução; Emissão de relatórios de medições dos serviços; Levantamento topográfico para aferir os serviços, se necessário; As operações serão executadas concomitantemente.
D17: 3 | E17: TERRAPLANAGEM | F17: m | G17: 0 | H17: # | I17: #
D18: 7 | E18: DRENAGEM | F18: m | G18: 0 | H18: # | I18: #
D19: 8 | E19: REVESTIMENTO PRMÁRIO (CASCALHO) | F19: m | G19: 0 | H19: # | I19: #
B20: 3 | C20: Pagamento das parcelas intermediárias | D20: 1 | E20: Prestação de contas parcial | F20: # | G20: # | H20: # | I20: # | J20: Liberação da parcela | K20: Compravação da aplicação da parcela anterior | L20: Município | M20: Apresentação de Relatórios de Execução Física e Financeira (contábil); Comprovantes de despesas; Relatórios Fotográficos;
B21: 4 | C21: Cumprimento da meta | D21: 1 | E21: Conclusão da execução dos serviços | F21: # | G21: # | H21: # | I21: # | J21: Liberação da parcela única ou última parcela | K21: Termo final do prazo de execução | L21: Município | M21: Medição final
D22: 2 | E22: Avaliação do cumprimento da meta | F22: # | G22: # | H22: # | I22: # | J22: Termo final do prazo de execução | K22: Termo final da vigência | L22: Município SEAB | M22: Relatório final de execução física e financeira; Certificado de Atingimernto dos Objetivos.
B25: 6. DESCRIÇÃO DA METODOLOGIA QUE SERÁ USADA NA EXECUÇÃO DAS FASES/ETAPAS
B26: Fases | C26: 6.1. Descrever as ações, os procedimentos, as técnicas e os meios que serão empregados para o atingimento das metas.
B27: 1 | C27: Contratação de empresa de engenharia
B28: 2 | C28: Execução dos serviços previstos em projeto
B29: 3 | C29: Pagamento das parelas intermediárias
B30: 4 | C30: Avaliação do Cumprimento da meta
B32: 6.2. Descrever, detalhadamente, a forma e frequência do acompanhamento e fiscalização da execução das metas do pactuado através dos Responsáveis Técnicos do municipio.
B33: 6.3. Planejamento das ações para garantir a execução da Meta*
B34: * Para preencher o item 6.3, utilizar como referência o texto abaixo, o que deverá ser deletado após o preenchimento: 1. Quais são os critérios objetivos para selecionar os trechos de estradas a receberem as melhorias (fluxo de veículos, características dos produtos a serem transportados, existência de estabelecimentos comerciais, número de propriedades ao longo do trecho, etc)? 2. Quais as intervenções necessárias? Adequação, readequação, melhoria ou manutenção? 3. Qual estratégia será adotada para a elaboração dos Projetos Técnicos e Relatório Técnico de Vistoria (RTV), para definição dos serviços a serem executados? 4. Como os proprietários lindeiros serão estimulados à adoção das práticas conservacionistas (ações de educação e conscientização, como palestras, reuniões e visitas a Unidades Demonstrativas, audiências públicas, etc)? 5. Como serão feitos o acompanhamento e a avaliação do impacto da melhoria da trafegabilidade e da adoção das práticas conservacionistas? (indicadores de trafegabilidade, rentabilidade, sustentabilidade, etc)? 6. Existe ou se pretende alguma parceria ou suporte de outras organizações ou entidades para alcançar essa meta (exemplo: IDR, ou empresas, auxiliarão a elaboração dos projetos e RTV)? 7. Como serão avaliados e comunicados o progresso e os resultados alcançados aos envolvidos e à comunidade em geral (relatórios, eventos, mídias sociais, etc)? É pertinente neste tópico a resposta a toda pergunta que auxilie o planejamento e a execução da ação que garanta que as metas sejam alcançadas, incluindo as ações apontadas no RTV para adequação do trecho, quando necessário, para que os benefícios da pavimentação da estrada sejam os maiores possíveis. Não esquecer a “solução como um todo”: a descrição da solução como um todo deve considerar todo o ciclo de vida do objeto executado, inclusive as questões relacionadas à manutenção, utilização, depreciação e impacto ambiental, entre outros fatores vinculados ao seu ciclo de vida, o que definirá o dispêndio a ser efetuado durante seu uso.

Sheet Plan7 7. PLA DE APL 8 Cap Int.
E2: PLANO DE TRABALHO MELHORIA DA TRAFEGABILIDADE EM ESTRADAS RURAIS MUNICIPAIS ÓLEO DIESEL com base no RTV - Relatório Técnico de Vistoria e Projetos Técnicos
C4: 7 - PLANO DE APLICAÇÃO DOS RECURSOS FINANCEIROS COM CRONOGRAMA DE DESEMBOLSO
C6: PLANO DE APLICAÇÃO DOS RECURSOS - RESUMO DAS METAS | N6: Pavimentação | O6: Valor Base:
C7: Descrição | D7: NATUREZA DE DESPESA | E7: SEAB | G7: Contrapartida Município | J7: Valor Global - (R$) | N7: ='Plan2 1.DADOS,2.OBJ e 2.1.Vigên'!E35 -> MANUTENÇÃO | O7: =VLOOKUP(N7,'Plan2 1.DADOS,2.OBJ e 2.1.Vigên'!#REF!,2,0) -> 
E8: (R$) | G8: Financeira (R$) | H8: Bens e/ou serviços (R$) | I8: Total (R$) | L8: =TEXT('Plan4 2.3. OPERAÇÕES'!Q54,"#.##0.000,00") -> 4.300,42
C9: =CONCATENATE("Contratação de empresa para fornecimento de ",L8," litros de combustível - Óleo Diesel - OD") -> Contratação de empresa para fornecimento de 4.300,42 litros de combustível - Óleo Diesel - OD | D9: 3.3.90.30.03 | E9: ='Plan4 2.3. OPERAÇÕES'!D62 -> 20467.8649 | G9: ='Plan4 2.3. OPERAÇÕES'!F62 -> 3852.986048 | H9: ='Plan4 2.3. OPERAÇÕES'!G62 -> 8607.8438 | I9: =G9+H9 -> 12460.82985 | J9: =E9+I9 -> 32928.69475
C11: CRONOGRAMA DE DESEMBOLSO
C12: Parcelas (R$) | D12: Número de Parcelas | E12: Percentual (%) da execução meta 02 | F12: Valores (R$) | I12: LIBERAÇÃO de PARCELAS
F13: SEAB | G13: Município | H13: Total (R$)
I14: PRAZOS
D15: 1 | E15: 0 | F15: 0 | G15: 0 | H15: =F15+G15 -> 0 | I15: Publicação do Termo de Homologação da Licitação ser disponibilizado. Em caso de adesão (carona) a outro processo licitatório, apresentar contrato assinado e a carta de autorização do administrador da ata assinada. | P15: x
D16: 2 | E16: 0 | F16: 0 | G16: 0 | H16: =F16+G16 -> 0 | I16: Prestação de contas parcial e relatório execução da 1ª parcela
D17: 3 | E17: 0 | F17: 0 | G17: 0 | H17: 0 | I17: Prestação de contas parcial e relatório execução da 2ª parcela
D18: 4 | E18: 0 | F18: 0 | G18: 0 | H18: 0 | I18: Prestação de contas parcial e relatório execução da 3ª parcela
D19: Total | E19: =SUM(E15:E18) -> 0 | F19: =SUM(F15:F18) -> 0 | G19: =SUM(G15:G18) -> 0 | H19: =SUM(H15:H18) -> 0
C20: Obs. (*) O Depósito da contrapartida finaceira deverá ser concomitante ao recebimento do recurso do concedente.
C21: (**) É obrigatória a apresentação da prestação de contas parcial para a liberação das parcelas
C23: 8. CAPACIDADE INSTALADA DO MUNICÍPIO
C24: a) Descrever, detalhadamente, a capacidade instalada do Município, demonstrando que é suficiente para garantir o cumprimento das obrigações acordadas e executar as atividades de forma eficaz a composição e formação da equipe técnica e operacional envolvida na execução do objeto, bem como os equipamentos (máquinas, veículos e etc...) disponíveis para tal.. Por exemplo: a) Recursos Humanos (há pessoal qualificado e em número suficiente); b) Recursos Técnicos (há equipamentos, tecnologia e conhecimento técnico). c) Recursos Físicos (há espaços físicos, instalações e infraestrutura); d) Recursos Financeiros (há capacidade financeira para arcar com os custos relacionados às atividades do convênio). Relatar como será a execução do RTV ou Projeto técnico pela equipe (efetiva) de forma continua ou não, evitando paralisações ou inexecução dos serviços dentro do cronograma. Preencher o quadro 8.1 Resumo da CAPACIDADE INSTALADA
C27: 8.1 - RESUMO CAPACIDADE INSTALADA - (efetivo)
C28: Equipamento | H28: Operador/Motorista | J28: Técnicos
C29: Qtde. | D29: Identificação placa ou nº de série | E29: Tipo | F29: Estado de conservação | G29: Tempo disponivel para execução do objeto | H29: Qtde. | I29: Descrição | J29: Qtde. | K29: Descrição
E30: Caminhão Basculante | I30: Operador de máquinas leve | K30: Eng. Civil
E31: Caminhão Prancha | I31: Operador de máquinas pesadas | K31: Eng. Agrônomo
E32: Caminhão comboio | I32: Motorista de caminhão | K32: Arquiteto
E33: Escavadeira hidráulica | I33: Motorista de caminhão comboio | K33: Topógrafo
E34: Motoniveladora | I34: Motorista de caminhão prancha | K34: Técnico Agrimensor/Agrícola
E35: Pá carregadeira | I35: Motorista de veículos de apoio
E36: Retroescavadeira | I36: Mecânico
E37: Rolo compactador
E38: Trator de esteira
E39: Veiculo para a equipe técnica
C40: Obs.: Estado de conservação Ótimo, Bom, Péssimo
C41: Obs.: Tempo disponível para execução (I) - INTEGRAL, (P) - PARCIAL

Sheet Plan8 Parâmetro e &
D1: PLANO DE TRABALHO MELHORIA DA TRAFEGABILIDADE EM ESTRADAS RURAIS MUNICIPAIS ÓLEO DIESEL com base no RTV - Relatório Técnico de Vistoria e Projetos Técnicos
B6: 8. PARÂMETRO(S) PARA AFERIÇÃO DO CUMPRIMENTO DA META
B7: Descrever a forma, modo, de avaliação dos resultados que permitirão a aferição dos resultados do convênio (ou seja, a conferência de seu objeto ter sido cumprido). Considerar que para cada “problema” houve um modo, meio ou forma que o detectou ou o avaliou, sendo esse o parâmetro objetivo de avaliação. Os trechos serão classificados em Padrão A, B, C ou D, de acordo com sua condição atual, conforme os procedimentos para seleção. O cumprimento da meta será verificado pela mudança de Padrão, de acordo com a seguinte legenda: 1. Padrão A: Estrada Rural com segmentos críticos, impedindo o tráfego contínuo em períodos prolongados do ano. 2. Padrão B: Estrada Rural adequada, readequada ou melhorada, com conservação regular e pontos críticos que ainda impedem o tráfego contínuo em períodos sazonais. 3. Padrão C: Estrada Rural adequada, readequada ou melhorada, com boa conservação, mas ainda com pontos críticos que impedem o tráfego contínuo em períodos esporádicos. 4. Padrão D: Estrada Rural adequada, conservada, com práticas eficientes de conservação de solos e água, possibilitando o tráfego contínuo ao longo de todos os meses do ano. Após o preenchimento, deletar o texto em vermelho.
B11: 9. COMPATIBILIDADE DOS CUSTOS COM OS PREÇOS PRATICADOS NO MERCADO
B12: Elementos que demonstrem a compatibilidade dos custos com os preços praticados no mercado, por meio de “orçamentos preliminares”, especificando qual das formas de cálculo permitida, foi utilizada para fins de definição do custo (média, mediana ou menor valor) Exemplo: Para evidenciar a compatibilidade dos custos com os preços praticados no mercado, foram empregados tabelas referenciais, as quais servem como uma ferramenta transparente para demonstrar a consistência entre os custos associados à obra e os preços estabelecidos para os produtos ou serviços no mercado. O detalhamento desses elementos em tabelas referenciais, fornece uma visão clara do processo de cálculo de custos e como esses custos estão alinhados com os preços praticados no mercado. Após o preenchimento, deletar o texto em vermelho.
B22: 10. RELAÇÃO CUSTO/BENEFÍCIO
B23: Demonstrar que existe adequação e proporcionalidade entre o recurso público alocado e os resultados esperados (projetados) pelo seu emprego é possível por meio, de um ou mais, dos critérios abaixo: • A relação entre despesas e resultados deve ser computada com base em critérios claros e transparentes. • A transferência de recursos deve ser relevante para a satisfação de necessidades ou objetivos públicos específicos. • As alternativas possíveis devem ser avaliadas para identificar a opção mais apropriada e vantajosa em termos de custo-benefício. • Os riscos financeiros, operacionais e outros envolvidos no projeto devem ser identificados e avaliados. • Por outras formas possíveis de acordo com o caso concreto. Exemplo: Enfatizamos que há conexão entre a alocação de recursos e os resultados esperados (projetados) e que seu emprego é de extrema relevância para atender às necessidades e interesses públicos específicos do município. Esta prática não apenas fortalece a transparência na gestão, mas também contribui para uma eficiente utilização dos recursos, garantindo que cada investimento público esteja alinhado com os objetivos estratégicos e necessidades reais da comunidade, tais como: melhorias na mobilidade e acessibilidade, oportunidades de novos negócios, melhoria na renda e qualidade de vida, impactos ambientais positivos do projeto e de sustentabilidade a longo prazo, ..... Após o preenchimento, deletar o texto em vermelho.

Sheet Planilha9_11_DOC_INTEGR_PT
C2: PLANO DE TRABALHO MELHORIA DA TRAFEGABILIDADE EM ESTRADAS RURAIS MUNICIPAIS ÓLEO DIESEL com base no RTV - Relatório Técnico de Vistoria e Projetos Técnicos
B4: 11. DOCUMENTOS INTEGRANTES DO PLANO DE TRABALHO
B5: 11.1 Descrição do Documento
B6: =CONCATENATE("a) Declaração de Contrapartida (FISICA OU FINANCEIRA) no valor de R$ ",F6) -> a) Declaração de Contrapartida (FISICA OU FINANCEIRA) no valor de R$ 3.852,99 | F6: =TEXT('Plan4 2.3. OPERAÇÕES'!F62,"#.##0,00") -> 3.852,99
B7: b) Orçamentos devidamente detalhado em planilha nos termos dos arts.368 a 372 e dos atrs. 484 a 486 do decreto Estadual 10.086/2022.
B8: C) Outros documentos necessários para execução do objeto (Caracterizar os documentos)
B10: 11.2 PARA OBRAS OU SERVIÇOS DE ENGENHARIA E ARQUITETURA
B11: a) Projeto Básico e/ou Executivo da Obra
B12: Projeto terraplanagem,
B13: Projeto de Drenagem, (quando indicado no RTV),
B14: Projeto de Pavimentação (Revestimento primário - Cascalho)
B15: Memoriais de cálculos, (DMT,.....)
B16: Memorial descritivo
B17: b) Planilha de Custos da Obra (expressando a composição dos custos unitários ou fundamentado em quantitativos de obras, serviços).
B18: c) Anotações e/ou Registros de Responsabilidade Técnica de ELABORAÇÃO, FISCALIZAÇÃO e EXECUÇÃO dos projetos e orçamentos, dos respectivos conselhos de classe CAU ou CREA.
B19: e) Relatório de impactos ambientais e/ou licenças ambientais, quando exigido pelos órgãos competentes (se houver ) .
B20: f) Apresentar cópia do plano diretor do municipio, com o mapa do sistema viário rural contemplando, a estrada a ser pavimentada, não serão aceitos trechos estradas dentro de perimetro urbano. Na ausencia deste, apresentar documento oficial da posse e da área de dominio da estrada, e anuência nos casos de estradas a serem trabalhadas pertencer a União ou Estado.

Sheet Plan10_OBR_MONI_AVAL_P.CONTAS
C2: PLANO DE TRABALHO MELHORIA DA TRAFEGABILIDADE EM ESTRADAS RURAIS MUNICIPAIS ÓLEO DIESEL com base no RTV - Relatório Técnico de Vistoria e Projetos Técnicos
B4: 12. OBRIGAÇÕES
B5: DO MONITORAMENTO, AVALIAÇÃO E DA PRESTAÇÃO DE CONTAS
B6: 1. O CONVENENTE TOMADOR realizará a prestação de contas através do Sistema Integrado de Transferências do TCE (SIT) conforme previsões das resoluções nº 28/2011, 46/2014 e a Instrução Normativa 61/2011 e as Cláusulas do Convênio
B7: 2. Cópia de ata da homologação do processo licitatório, contrato, CNO - Cadastro Nacional de Obras, licença ambiental do fornecedor ( pedreira) do material a ser utilizado na pavimentação.
B8: 3. O CONVENENTE TOMADOR, apresentará as informações dos resultados alcançados sob os aspectos técnicos e financeiros obtidos com a execução do objeto da parceria na seguinte forma e periodicidade:
B9: 3.1) Bimestralmente, anualmente, a cada liberação de parcela (R$)e após a Conclusão do Convênio por meio de:
B10: a. Relatório de Execução do Objeto (PARCIAL E FINAL): documento que descreverá as atividades desenvolvidas, comparativo das metas propostas e resultados alcançados, acompanhado do respectivo material comprobatório. ( mapas de medição e notas fiscais comprobatórias, fotos e filmagens)
B11: b. Relatório de Execução Financeira (PARCIAL E FINAL): documento que relaciona os pagamentos efetuados em face das despesas previstas neste Plano de Trabalho e a conciliação bancária aferida pela correlação entre despesas constantes na relação de pagamentos e os débitos efetuados na conta corrente específica da parceria e devidos nexos de causalidade entre umas e outras, sua conformidade e o cumprimento das normas pertinentes.
B12: c. Cópia do Extratos Bancários (conta aplicação e conta corrente);
B13: d. Devera ser encaminhado a SEAB a CND a obra, até 30 (trinta) dias após a conclusão da execução do objeto do convênio, previsto no projeto e plano de trabalho;
B14: e. Comprovante de recolhimento de saldo ao Tesouro Estadual (se necessário ou houver)
B15: 4. O CONCEDENTE - deverá efetuar fiscalização bimenstralmente e ou quando necessário, gerando TAF - Termo de Acompanhamento e Fiscalização, e se for o caso folha de informação.
B16: a . Quando da fiscalização da SEAB, for verificado inconformidades, devera o fiscal informar o gestor passando a este cópia do TAF - Termo de acompanhamento e fiscalização para que o gestor tome as providencias necessárias, ou seja, proceder a notificação ao Tomador (municipio).
B17: b. O envio dos documentos (TAFs, folha de informação da Divisão de Apoio Técnico do DEAGRO/SEAB, e notificações) e relatórios previstos no item 3 será feito de forma eletrônica através do e-protocolo, deverá ser enviado ao NUCONV para anexar ao e-protocolo do termo de convênio.

Sheet Plan11_ASSINATURAS
D2: PLANO DE TRABALHO MELHORIA DA TRAFEGABILIDADE EM ESTRADAS RURAIS MUNICIPAIS ÓLEO DIESEL com base no RTV - Relatório Técnico de Vistoria e Projetos Técnicos
B4: 13. DECLARAÇÃO DO RESPONSÁVEL TÉCNICO PELO PLANO DE APLICAÇÃO FINANCEIRA
B5: Declaro, para fins de prova junto à SEAB, estar de acordo com o plano de aplicação dos recursos deste Plano de Trabalho.
B6: Nome: | I6: __________________________
B7: Cargo: | C7: CONTADOR
B8: N.º Registro Conselho de Classe: | F8: CRC: xxxx
B9: Local: | C9: XXXXXX
B10: Data: | C10: __ /__ /2024 | I10: Assinatura
B12: 14. RESPONSÁVEL TÉCNICO PELA ELABORAÇÃO DO PLANO DE TRABALHO
B13: =CONCATENATE(N13,N14) -> O presente Plano de Trabalho foi por mim elaborado de acordo com as normas técnicas aplicáveis e está compatível com as prioridades de atendimento da agricultura familiar e com os recursos financeiros destinados pelo Projeto de Pavimentação com MANUTENÇÃO | N13: O presente Plano de Trabalho foi por mim elaborado de acordo com as normas técnicas aplicáveis e está compatível com as prioridades de atendimento da agricultura familiar e com os recursos financeiros destinados pelo Projeto de Pavimentação com
B14: Nome: | I14: __________________________ | N14: ='Plan2 1.DADOS,2.OBJ e 2.1.Vigên'!E35 -> MANUTENÇÃO
B15: Cargo: | C15: ENGENHEIRO (a) CIVIL
B16: N.º Registro Conselho de Classe: | F16: CREA PRXXXXX/D
B17: Local: | C17: XXXXXX
B18: Nº telefone
B19: e-mail
B20: Data: | C20: __ /__ /2024 | I20: Assinatura
B22: 15. APROVAÇÃO DO PREFEITO
B23: Nome: | C23: ='[2]Plan2 1.DADOS,2.OBJ e 2.1.Vigên'!C15:I15 -> XXXXXXXXX | I23: __________________________
B24: Cargo: | C24: PREFEITO MUNICIPAL
B25: CPF (LGPD): | C25: ='[2]Plan2 1.DADOS,2.OBJ e 2.1.Vigên'!C16:D16 -> XXXXXXXXX
B26: Local: | C26: ='[2]Plan2 1.DADOS,2.OBJ e 2.1.Vigên'!C6:I6 -> XXXXXXXXXXX
B27: Data: | C27: __ /__ /2024 | I27: Assinatura
B28: LGPD - Lei Geral de Proteção de Dados Pessoais, Lei nº 13.709/2018,
B30: 16 - ASSINATURA DO GESTOR DO CONVÊNIO PELA SEAB (Chefe do NR)
B31: Nome: | C31: XXXXXXXXXXXXXXX | I31: __________________________
B32: Cargo | C32: CHEFE DO NÚCLEO REG. SEAB/XXXXXX
B33: CPF (LGPD): | C33: XXXXXXXXXXXXXXX
B34: Local: | C34: XXXXXXXXXXXXXXX
B35: Data: | C35: __ /__ /2024 | I35: Assinatura
B36: LGPD - Lei Geral de Proteção de Dados Pessoais, Lei nº 13.709/2018,
D42: PROGRAMA ESTRADAS DA INTEGRAÇÃO PROJETO DE ADEQUAÇÃO, READEQUAÇÃO, MAUTENÇÃO E OU MELHORIAS DE ESTRADAS RURAIS MUNICIPAIS - CUSTEIO SOMENTE ÓLEO DIESEL COM BASE EM RTV - Relatório Técnico de Vistoria e Projetos Técnicos
B44: 17. MANIFESTAÇÃO TÉCNICA DO DEAGRO – SEDE
B45: Atestamos, para os devidos fins, que este Plano de Trabalho se encontra em condições técnicas para a sua aprovação pelo Sr. Secretário da Agricultura e do Abastecimento.
B46: 17.1. Técnico do DEAGRO-Sede.
B47: ________________________________________
B50: (Assinatura: nome, registro no conselho de classe) | I50: Curitiba, __ /__ /2024
B51: 17.2. Chefe do Departamento de Desenvolvimento Rural Sustentável - DEAGRO.
B52: ______________________________________
B55: Márcio da Silva | I55: Curitiba, __ /__ /2024
B56: CREA-SC 7.857/D
B59: 18. APROVAÇÃO DA SEAB
B60: =CONCATENATE(O60,N14,O61) -> Aprovamos, para os devidos fins, este Plano de Trabalho por encontrar-se em conformidade com as diretrizes do Projeto de MANUTENÇÃO, estando apto para sua efetivação via convênio. | O60: Aprovamos, para os devidos fins, este Plano de Trabalho por encontrar-se em conformidade com as diretrizes do Projeto de
O61: , estando apto para sua efetivação via convênio.
B62: ________________________________________
B65: Secretário de Estado da Agricultura e do Abastecimento. | I65: Curitiba, __ /__ /2024
B66: Norberto Anacleto Ortigara

Sheet Municipios (hidden)
A1: Município | B1: Índice IPARDES 2021 | C1: Contrapartida Mínima | D1: Núcleo Regional | E1: CNPJ | F1: Credor | G1: Endereço Prefeitura | H1: Cep Prefeitura | I1: Prefeito
A2: Abatiá | B2: 0.6939848457 | C2: 5% | D2: Cornélio Procópio | E2: 75.743.567/0001-57 | F2: 214799 | G2: Av. João Carvalho Mello, 135, Centro | H2: 86.460-000 | I2: Nelson Garcia Junior
A3: Adrianópolis | B3: 0.648043026 | C3: 5% | D3: Curitiba | E3: 76.105.642/0001-17 | F3: 102344 | G3: Av. Marechal Mascarenhas de Morães, 115, Centr | H3: 83.490-000 | I3: Vandir de Oliveira Rosa
A4: Agudos do Sul | B4: 0.6371963202 | C4: 5% | D4: Curitiba | E4: 76.105.667/0001-10 | F4: 147555 | G4: Av. Brasil, 38, Centro | H4: 83.850-000 | I4: Jesse da Rocha Zoellner
A5: Almirante Tamandaré | B5: 0.6289153851 | C5: 5% | D5: Curitiba | E5: 76.105.659/0001-74 | F5: 119789 | G5: Av. Emílio Jonhson, 360, Centro | H5: 83.501-000 | I5: Gerson Denilson Colodel
A6: Altamira do Paraná | B6: 0.7466767418 | C6: 10% | D6: Campo Mourão | E6: 78.069.143/0001-47 | F6: 119790 | G6: R. Cantú, 180, Centro | H6: 85.280-000 | I6: José Etevaldo de Oliveira
A7: Altônia | B7: 0.7407401056 | C7: 10% | D7: Umuarama | E7: 81.478.059/0001-91 | F7: 119791 | G7: R. Rui Barbosa, 815, Centro | H7: 87.550-000 | I7: Claudenir Gervasone
A8: Alto Paraíso | B8: 0.6819360693 | C8: 5% | D8: Umuarama | E8: 95.640.736/0001-30 | F8: 119792 | G8: Av. Pedro Amaro dos Santos, 900, Centro | H8: 87.528-000 | I8: Dércio Jardim Junior
A9: Alto Paraná | B9: 0.7071395976 | C9: 10% | D9: Paranavaí | E9: 76.279.967/0001-16 | F9: 119793 | G9: R. José Anchieta, 1641, Centro | H9: 87.750-000 | I9: Claudemir Joia Pereira
A10: Alto Piquiri | B10: 0.7581047235 | C10: 10% | D10: Umuarama | E10: 76.247.352/0001-08 | F10: 122329 | G10: R. Santos Dumont, 341, Centro | H10: 87.580-000 | I10: Giovane Mendes de Carvalho
A11: Alvorada do Sul | B11: 0.6939025223 | C11: 5% | D11: Londrina | E11: 75.132.860/0001-88 | F11: 119794 | G11: Praça Prefeito Antonio de Souza Lemos, 32, Centro | H11: 86.150-000 | I11: Marcos Antonio Voltarelli
A12: Amaporã | B12: 0.7061680096 | C12: 10% | D12: Paranavaí | E12: 75.475.038/0001-10 | F12: 119795 | G12: R. Sete de Setembro, 21, Centro | H12: 87.850-000 | I12: Mauro Lemos
A13: Ampére | B13: 0.7900954159 | C13: 10% | D13: Francisco Beltrão | E13: 77.817.054/0001-79 | F13: 122333 | G13: R. Maringá, 279, Centro | H13: 85.640-000 | I13: Disnei Luquini
A14: Anahy | B14: 0.7474501874 | C14: 10% | D14: Cascavel | E14: 95.594.800/0001-94 | F14: 147565 | G14: R. Vereador Leonardo Aparecido Dobicz, 591, Centro | H14: 85.425-000 | I14: Carlos Antonio Reis
A15: Andirá | B15: 0.7192755226 | C15: 10% | D15: Cornélio Procópio | E15: 76.235.761/0001-94 | F15: 119796 | G15: R. Mauro Cardoso de Oliveira, 190, Jardim Vesper | H15: 86.380-000 | I15: Ione Elisabeth Alves Abib
A16: Ângulo | B16: 0.7489938965 | C16: 10% | D16: Maringá | E16: 95.642.286/0001-15 | F16: 122334 | G16: Av. Valério Osmar Estevão, 72, Centro | H16: 86.755-000 | I16: Rogerio Aparecido Bernardo
A17: Antonina | B17: 0.5896293827 | C17: 5% | D17: Paranaguá | E17: 76.022.516/0001-07 | F17: 119797 | G17: R. Xv de Novembro, 150, Centro | H17: 83.370-000 | I17: José Paulo Vieira Azim
A18: Antônio Olinto | B18: 0.7128471689 | C18: 10% | D18: União da Vitória | E18: 76.020.460/0001-43 | F18: 122335 | G18: Av. Reinaldo Machiavelli, 202, Centro | H18: 83.980-000 | I18: Alan Jaros
A19: Apucarana | B19: 0.7784418981 | C19: 10% | D19: Apucarana | E19: 75.771.253/0001-68 | F19: 119798 | G19: Praça Centro Cívico José de Oliveira Rosa, 25, Centro | H19: 86.800-235 | I19: Sebastião Ferreira Martins Junior
A20: Arapongas | B20: 0.7831342656 | C20: 10% | D20: Apucarana | E20: 76.958.966/0001-06 | F20: 119799 | G20: R. Garças, 750, Centro | H20: 86.700-285 | I20: Sergio Onofre da Silva
A21: Arapoti | B21: 0.7549019498 | C21: 10% | D21: Ponta Grossa | E21: 75.658.377/0001-31 | F21: 119800 | G21: R. Placídio Leite, 148, Centro Cívico | H21: 84.990-000 | I21: Irani Jose Barros
A22: Arapuã | B22: 0.727616373 | C22: 10% | D22: Ivaiporã | E22: 01.612.388/0001-44 | F22: 119801 | G22: R. Presidente Café Filho, 1410, Recanto Feliz | H22: 86.884-000 | I22: Deodato Matias
A23: Araruna | B23: 0.7755823004 | C23: 10% | D23: Campo Mourão | E23: 75.359.760/0001-99 | F23: 119802 | G23: Praça Nossa Senhora do Rocio, 390, Centro | H23: 87.260-000 | I23: Leandro Cesar de Oliveira
A24: Araucária | B24: 0.8047611502 | C24: 10% | D24: Curitiba | E24: 76.105.535/0001-99 | F24: 119803 | G24: R. Pedro Druszcz, 111, Centro | H24: 83.702-080 | I24: Hissam Hussein Dehaini
A25: Ariranha do Ivaí | B25: 0.7731549823 | C25: 10% | D25: Ivaiporã | E25: 01.612.453/0001-31 | F25: 119804 | G25: R. Miguel Verenka, 14, Centro | H25: 86.880-000 | I25: Thiago Epifanio da Silva
A26: Assaí | B26: 0.749061697 | C26: 10% | D26: Cornélio Procópio | E26: 76.290.709/0001-30 | F26: 119805 | G26: Av. Rio de Janeiro, 720, Centro | H26: 86.220-000 | I26: Michel Angelo Bomtempo
A27: Assis Chateaubriand | B27: 0.7497926537 | C27: 10% | D27: Toledo | E27: 76.208.479/0001-18 | F27: 119806 | G27: Av. Cívica, S/N | H27: 85.935-000 | I27: Valter Aparecido Souza Correia
A28: Astorga | B28: 0.7677281821 | C28: 10% | D28: Maringá | E28: 75.743.377/0001-30 | F28: 119807 | G28: Av. Doutor José Soares de Azevedo, 48, Centro | H28: 86.730-000 | I28: Suzie Aparecida Pucillo Zanatta
A29: Atalaia | B29: 0.7361675947 | C29: 10% | D29: Maringá | E29: 75.731.018/0001-62 | F29: 122336 | G29: Praça José Bento dos Santos, 02, Centro | H29: 87.630-000 | I29: Carlos Eduardo Armelin Mariani
A30: Balsa Nova | B30: 0.7028642674 | C30: 10% | D30: Curitiba | E30: 76.105.527/0001-42 | F30: 147583 | G30: Av. Brasil, 665, Centro | H30: 83.650-000 | I30: Marcos Antonio Zanetti
A31: Bandeirantes | B31: 0.7464541671 | C31: 10% | D31: Cornélio Procópio | E31: 76.235.753/0001-48 | F31: 147584 | G31: R. Frei Rafael Proner, 1457, Centro | H31: 86.360-000 | I31: Jaelson Ramalho Matta
A32: Barbosa Ferraz | B32: 0.7202514358 | C32: 10% | D32: Campo Mourão | E32: 76.950.062/0001-26 | F32: 119808 | G32: Av. Presidente Kennedy, 363, Centro | H32: 86.960-000 | I32: Edenilson Aparecido Miliossi
A33: Barracão | B33: 0.682530972 | C33: 5% | D33: Francisco Beltrão | E33: 75.666.131/0001-01 | F33: 122337 | G33: R. São Paulo, 235, Centro | H33: 85.700-000 | I33: Jorge Luiz Santin
A34: Barra do Jacaré | B34: 0.7514300645 | C34: 10% | D34: Jacarezinho | E34: 76.407.568/0001-93 | F34: 119809 | G34: R. Rui Barbosa, 96, Centro | H34: 86.385-000 | I34: Edimar de Freitas Alboneti
A35: Bela Vista da Caroba | B35: 0.6986003084 | C35: 5% | D35: Francisco Beltrão | E35: 01.612.441/0001-07 | F35: 119810 | G35: Av. Rio de Janeiro, 1021, Centro | H35: 85.745-000 | I35: Gelson Maffi
A36: Bela Vista do Paraíso | B36: 0.7064717936 | C36: 10% | D36: Londrina | E36: 76.245.067/0001-58 | F36: 119811 | G36: R. Joaquim Ladeia, 150, Centro | H36: 86.130-000 | I36: Fabricio Pastore
A37: Bituruna | B37: 0.7252268371 | C37: 10% | D37: União da Vitória | E37: 81.648.859/0001-03 | F37: 119812 | G37: Av. Doutor Oscar Geyer, 489, Centro | H37: 84.640-000 | I37: Rodrigo Rossoni
A38: Boa Esperança | B38: 0.7852197732 | C38: 10% | D38: Campo Mourão | E38: 76.217.017/0001-67 | F38: 119813 | G38: Av. Brasil, 361, Centro | H38: 87.390-000 | I38: Joel Celso Buscariol
A39: Boa Esperança do Iguaçu | B39: 0.7731361584 | C39: 10% | D39: Dois Vizinhos | E39: 95.589.255/0001-48 | F39: 122338 | G39: R. Demétrio Pinzon, 16, Centro | H39: 85.680-000 | I39: Givanildo Trumi
A40: Boa Ventura de São Roque | B40: 0.7278498603 | C40: 10% | D40: Pitanga | E40: 01.612.906/0001-20 | F40: 119814 | G40: R. Moisés Miranda, 422, Centro | H40: 85.225-000 | I40: Edson Flavio Hoffmann
A41: Boa Vista da Aparecida | B41: 0.7392978156 | C41: 10% | D41: Cascavel | E41: 78.121.985/0001-09 | F41: 122339 | G41: Av. Cícero Barbosa Sobrinho, 1190, Centro | H41: 85.780-000 | I41: Leonir Antunes dos Santos
A42: Bocaiúva do Sul | B42: 0.621692695 | C42: 5% | D42: Curitiba | E42: 76.105.592/0001-78 | F42: 133465 | G42: R. Carlos Alberto Ribeiro, 21, Centro | H42: 83.450-000 | I42: Antonio Luiz Gusso
A43: Bom Jesus do Sul | B43: 0.7419550956 | C43: 10% | D43: Francisco Beltrão | E43: 01.612.443/0001-04 | F43: 119815 | G43: Av. Ipiranga, 72, Centro | H43: 85.708-000 | I43: Helio José Surdi
A44: Bom Sucesso | B44: 0.7258238861 | C44: 10% | D44: Apucarana | E44: 75.771.261/0001-04 | F44: 120030 | G44: Praça Paraná, 77, Centro | H44: 86.940-000 | I44: Raimundo Severiano de Almeida Junior
A45: Bom Sucesso do Sul | B45: 0.754025367 | C45: 10% | D45: Pato Branco | E45: 80.874.100/0001-86 | F45: 119816 | G45: R. Cândido Merlo, 290, Centro | H45: 85.515-000 | I45: Nilson Antonio Feversani
A46: Borrazópolis | B46: 0.7395756833 | C46: 10% | D46: Ivaiporã | E46: 75.740.829/0001-20 | F46: 119817 | G46: Praça da República, 28, Centro | H46: 86.925-000 | I46: Dalton Fernandes Moreira
A47: Braganey | B47: 0.7651591432 | C47: 10% | D47: Cascavel | E47: 78.121.902/0001-73 | F47: 119818 | G47: Av. Arthur Pereira, 860, Centro | H47: 85.430-000 | I47: Odair Guerreiro Oliveira
A48: Brasilândia do Sul | B48: 0.6570199447 | C48: 5% | D48: Umuarama | E48: 95.640.520/0001-75 | F48: 119819 | G48: Av. Adão Arcângelo Dal Bem, 882, Centro | H48: 87.595-000 | I48: Alex Antonio Cavalcante
A49: Cafeara | B49: 0.7662490253 | C49: 10% | D49: Londrina | E49: 75.845.545/0001-06 | F49: 119820 | G49: Av. Brasil, 188, Centro | H49: 86.640-000 | I49: Elton Fabio Lazaretti
A50: Cafelândia | B50: 0.8229085785 | C50: 10% | D50: Cascavel | E50: 78.121.878/0001-72 | F50: 119821 | G50: R. Vereador Luiz Picolli, 299, Centro | H50: 85.415-000 | I50: Culestino Kiara
A51: Cafezal do Sul | B51: 0.7227381133 | C51: 10% | D51: Umuarama | E51: 95.640.652/0001-05 | F51: 119822 | G51: Av. Ítalo Orcelli, 604, Centro | H51: 87.565-000 | I51: Mario Junio Kazuo da Silva
A52: Califórnia | B52: 0.7364923861 | C52: 10% | D52: Apucarana | E52: 75.771.279/0001-06 | F52: 119823 | G52: R. 17 de Dezembro, 149, Centro | H52: 86.820-000 | I52: Paulo Wilson Mendes
A53: Cambará | B53: 0.7094299304 | C53: 10% | D53: Jacarezinho | E53: 75.442.756/0001-90 | F53: 122340 | G53: Av. Brasil, 1229, Centro | H53: 86.390-000 | I53: José Salim Haggi Neto
A54: Cambé | B54: 0.7629484289 | C54: 10% | D54: Londrina | E54: 75.732.057/0001-84 | F54: 122341 | G54: R. Otto Gaertner, 65, Centro | H54: 86.181-900 | I54: Conrado Angelo Scheller
A55: Cambira | B55: 0.8151565907 | C55: 10% | D55: Apucarana | E55: 75.771.287/0001-52 | F55: 122342 | G55: Av. Canadá, 320, Centro | H55: 86.890-000 | I55: Emerson Toledo Pires
A56: Campina da Lagoa | B56: 0.7104951925 | C56: 10% | D56: Campo Mourão | E56: 76.950.070/0001-72 | F56: 119824 | G56: R. Vereador Homero Franco, 851, Centro | H56: 87.345-000 | I56: Milton Luiz Alves
A57: Campina do Simão | B57: 0.6894556785 | C57: 5% | D57: Guarapuava | E57: 01.611.489/0001-09 | F57: 119825 | G57: R. José Pedro Seleme, 3516, Centro | H57: 85.148-000 | I57: Andre Junior de Paula
A58: Campina Grande do Sul | B58: 0.716819429 | C58: 10% | D58: Curitiba | E58: 76.105.600/0001-86 | F58: 147471 | G58: Praça Bento Munhoz da Rocha Neto, 30, Centro | H58: 83.430-000 | I58: Bihl Elerian Zanetti
A59: Campo Bonito | B59: 0.7692192213 | C59: 10% | D59: Cascavel | E59: 80.869.621/0001-45 | F59: 119826 | G59: R. Prefeito Darcísio Roberto Grassi, 252, Centro | H59: 85.450-000 | I59: Mario Weber
A60: Campo do Tenente | B60: 0.6694226715 | C60: 5% | D60: Curitiba | E60: 76.002.658/0001-02 | F60: 147618 | G60: Av. Miguel Komarchewski, 900, Centro | H60: 83.870-000 | I60: Weverton Willian Vizentin
A61: Campo Largo | B61: 0.7589690243 | C61: 10% | D61: Curitiba | E61: 76.105.618/0001-88 | F61: 119827 | G61: Av. Padre Natal Pigatto, 925, Vila Bancária | H61: 83.601-630 | I61: Mauricio Roberto Rivabem
A62: Campo Magro | B62: 0.6970919627 | C62: 5% | D62: Curitiba | E62: 01.607.539/0001-76 | F62: 131883 | G62: Rodovia Gumercindo Boza, 2823, Centro | H62: 83.535-000 | I62: Claudio Cesar Casagrande
A63: Campo Mourão | B63: 0.8159419221 | C63: 10% | D63: Campo Mourão | E63: 75.904.524/0001-06 | F63: 119828 | G63: R. Brasil, 1487, Centro | H63: 87.301-140 | I63: Tauillo Tezelli
A64: Cândido de Abreu | B64: 0.5995850035 | C64: 5% | D64: Pitanga | E64: 76.175.926/0001-80 | F64: 120031 | G64: Av. Paraná, 3, Centro | H64: 84.470-000 | I64: Renan Menck Romanichen
A65: Candói | B65: 0.7286947146 | C65: 10% | D65: Guarapuava | E65: 95.684.478/0001-94 | F65: 119829 | G65: R. Xv de Novembro, 1761, Centro | H65: 85.140-000 | I65: Aldoino Goldoni Filho
A66: Cantagalo | B66: 0.6767404843 | C66: 5% | D66: Guarapuava | E66: 78.279.981/0001-45 | F66: 119830 | G66: R. Cinderela, 379, Centro | H66: 85.160-000 | I66: João Konjunski
A67: Capanema | B67: 0.7832055964 | C67: 10% | D67: Francisco Beltrão | E67: 75.972.760/0001-60 | F67: 119831 | G67: Av. Pedro Viriato Parigot de Souza, 1080, Cent | H67: 85.760-000 | I67: Américo Bellé
A68: Capitão Leônidas Marques | B68: 0.7655203328 | C68: 10% | D68: Cascavel | E68: 76.208.834/0001-59 | F68: 122343 | G68: Av. Trancredo Neves, 502, Centro | H68: 85.790-000 | I68: Maxwell Scapini
A69: Carambeí | B69: 0.7892775952 | C69: 10% | D69: Ponta Grossa | E69: 01.613.765/0001-60 | F69: 119832 | G69: Av. do Ouro , 1335, Nova Carambeí | H69: 84.145-000 | I69: Elisangela Pedroso de Oliveira Nunes
A70: Carlópolis | B70: 0.6997152644 | C70: 5% | D70: Jacarezinho | E70: 76.965.789/0001-87 | F70: 119833 | G70: R. Benedito Salles, 1060, Centro | H70: 86.420-000 | I70: Hiroshi Kubo
A71: Cascavel | B71: 0.8265543572 | C71: 10% | D71: Cascavel | E71: 76.208.867/0001-07 | F71: 119834 | G71: R. Paraná, 5000, Centro | H71: 85.810-011 | I71: Leonaldo Paranhos da Silva
A72: Castro | B72: 0.7606249731 | C72: 10% | D72: Ponta Grossa | E72: 77.001.311/0001-08 | F72: 119835 | G72: Praça Pedro Kaled, 22, Centro | H72: 84.165-540 | I72: Moacyr Elias Fadel Junior
A73: Catanduvas | B73: 0.7109661685 | C73: 10% | D73: Cascavel | E73: 76.208.842/0001-03 | F73: 119836 | G73: Av. dos Pioneiros, 500, Centro | H73: 85.470-000 | I73: Moises Aparecido de Souza
A74: Centenário do Sul | B74: 0.7776136136 | C74: 10% | D74: Londrina | E74: 75.845.503/0001-67 | F74: 122344 | G74: Praça Aurélio Basso, 378, Centro | H74: 86.630-000 | I74: Melquiades Tavian Junior
A75: Cerro Azul | B75: 0.588281099 | C75: 5% | D75: Curitiba | E75: 76.105.626/0001-24 | F75: 214805 | G75: R. Barão do Cerro Azul, 63, Centro | H75: 83.570-000 | I75: Patrik Magari
A76: Céu Azul | B76: 0.7877163593 | C76: 10% | D76: Cascavel | E76: 76.206.473/0001-01 | F76: 119837 | G76: Av. Nilo Umberto Deitos, 1426, Centro | H76: 85.840-000 | I76: Laurindo Sperotto
A77: Chopinzinho | B77: 0.7716726879 | C77: 10% | D77: Pato Branco | E77: 76.995.414/0001-60 | F77: 119838 | G77: R. Miguel Procópio Kurpel, 3811, São Miguel | H77: 85.560-000 | I77: Edson Luiz Cenci
A78: Cianorte | B78: 0.8199119551 | C78: 10% | D78: Cianorte | E78: 76.309.806/0001-28 | F78: 122345 | G78: Praça Centro Cívico, 100, Centro Cívico | H78: 87.200-000 | I78: Marco Antonio Franzato
A79: Cidade Gaúcha | B79: 0.753503695 | C79: 10% | D79: Cianorte | E79: 75.377.200/0001-67 | F79: 122346 | G79: R. Juscelino Kubitschek de Oliveira, 2394, Centro | H79: 87.820-000 | I79: Henrique Domingues
A80: Clevelândia | B80: 0.662847297 | C80: 5% | D80: Pato Branco | E80: 76.161.199/0001-00 | F80: 119839 | G80: Praça Getúlio Vargas, 71, Centro | H80: 85.530-000 | I80: Rafaela Martins Losi
A81: Colombo | B81: 0.713797081 | C81: 10% | D81: Curitiba | E81: 76.105.634/0001-70 | F81: 133441 | G81: R. Xv de Novembro, 105, Centro | H81: 83.414-000 | I81: Helder Luiz Lazarotto
A82: Colorado | B82: 0.7501591316 | C82: 10% | D82: Maringá | E82: 76.970.326/0001-03 | F82: 122347 | G82: Av. Brasil, 1250, Centro | H82: 86.690-000 | I82: Marcos José Consalter de Mello
A83: Congonhinhas | B83: 0.6583664015 | C83: 5% | D83: Cornélio Procópio | E83: 75.825.828/0001-88 | F83: 147436 | G83: Av. Doutor David Xavier da Silva, 266, Centro | H83: 86.320-000 | I83: José Olegário Ribeiro Lopes
A84: Conselheiro Mairinck | B84: 0.6996195806 | C84: 5% | D84: Jacarezinho | E84: 75.968.412/0001-19 | F84: 122412 | G84: Praça Otacílio Ferreira, 82, Centro | H84: 86.480-000 | I84: Alex Sandro Pereira Costa Domingues
A85: Contenda | B85: 0.6833277741 | C85: 5% | D85: Curitiba | E85: 76.105.519/0001-04 | F85: 147484 | G85: Av. João Franco, 400, Centro | H85: 83.730-000 | I85: Antonio Adamir Digner
A86: Corbélia | B86: 0.7388934474 | C86: 10% | D86: Cascavel | E86: 76.208.826/0001-02 | F86: 133427 | G86: R. Amor Perfeito, 1616, Centro | H86: 85.420-000 | I86: Giovani Miguel Wolf Hnatuw
A87: Cornélio Procópio | B87: 0.7544633464 | C87: 10% | D87: Cornélio Procópio | E87: 76.331.941/0001-70 | F87: 119840 | G87: Av. Minas Gerais, 301, Centro | H87: 86.300-000 | I87: Amin José Hannouche
A88: Coronel Domingos Soares | B88: 0.6863708487 | C88: 5% | D88: Pato Branco | E88: 01.614.415/0001-18 | F88: 119841 | G88: Av. Araucária, 3120, Centro | H88: 85.557-000 | I88: Jandir Bandiera
A89: Coronel Vivida | B89: 0.7613776467 | C89: 10% | D89: Pato Branco | E89: 76.995.455/0001-56 | F89: 119842 | G89: Praça Angelo Mezzomo, S/N, Centro | H89: 85.550-000 | I89: Anderson Manique Barreto
A90: Corumbataí do Sul | B90: 0.6917780775 | C90: 5% | D90: Campo Mourão | E90: 80.888.662/0001-89 | F90: 119843 | G90: R. Tocantins, 153, Centro | H90: 86.970-000 | I90: Alexandre Donato
A91: Cruzeiro do Iguaçu | B91: 0.6736862005 | C91: 5% | D91: Dois Vizinhos | E91: 95.589.230/0001-44 | F91: 119844 | G91: Av. 13 de Maio, 906, Centro | H91: 85.598-000 | I91: Leonir Antônio Gelhen
A92: Cruzeiro do Oeste | B92: 0.7430207847 | C92: 10% | D92: Umuarama | E92: 76.381.854/0001-27 | F92: 119845 | G92: R. João Ormindo de Resende, 686, Centro | H92: 87.400-000 | I92: Maria Helena Bertoco Rodrigues
A93: Cruzeiro do Sul | B93: 0.747133473 | C93: 10% | D93: Paranavaí | E93: 75.731.034/0001-55 | F93: 122348 | G93: Av. Gastão Vidigal, 600, Centro | H93: 87.650-000 | I93: Marcos César Sugigan
A94: Cruz Machado | B94: 0.660345216 | C94: 5% | D94: União da Vitória | E94: 76.339.688/0001-09 | F94: 119846 | G94: Av. Vitória, 251, Centro | H94: 84.620-000 | I94: Antonio Luis Szaykowski
A95: Cruzmaltina | B95: 0.7545997256 | C95: 10% | D95: Ivaiporã | E95: 01.615.393/0001-00 | F95: 119847 | G95: Av. Padre Gualter Farias Negrão, 40, Centro | H95: 86.855-000 | I95: Natal Casavechia
A96: Curitiba | B96: 0.8840307871 | C96: 10% | D96: Curitiba | E96: 76.417.005/0001-86 | F96: 14 | G96: Palácio 29 de Março - Av. Cândido de Abreu, 81 | H96: 80.530-908 | I96: Rafael Valdomiro Greca de Macedo
A97: Curiúva | B97: 0.6485420217 | C97: 5% | D97: Jacarezinho | E97: 76.167.725/0001-30 | F97: 119849 | G97: Av. Antônio Cunha, 81, Centro | H97: 84.280-000 | I97: Natanael Moura dos Santos
A98: Diamante D'Oeste | B98: 0.7601648327 | C98: 10% | D98: Cascavel | E98: 77.817.476/0001-44 | F98: 119850 | G98: R. Marechal Castelo Branco, 597, Centro | H98: 85.896-000 | I98: Guilherme Pivatto Junior
A99: Diamante do Norte | B99: 0.6855883405 | C99: 5% | D99: Paranavaí | E99: 76.972.082/0001-06 | F99: 119851 | G99: R. José Vicente, 257, Centro | H99: 87.990-000 | I99: Eliel dos Santos Correa
A100: Diamante do Sul | B100: 0.6758496048 | C100: 5% | D100: Laranjeiras Do Sul | E100: 95.595.120/0001-95 | F100: 122349 | G100: Av. Getúlio Vargas, S/N, Centro | H100: 85.408-000 | I100: Darci Tirelli
A101: Dois Vizinhos | B101: 0.8389248586 | C101: 10% | D101: Dois Vizinhos | E101: 76.205.640/0001-08 | F101: 119852 | G101: Av. Rio Grande do Sul, 130, Centro | H101: 85.660-000 | I101: Luis Carlos Turatto
A102: Douradina | B102: 0.8273778424 | C102: 10% | D102: Umuarama | E102: 78.200.110/0001-94 | F102: 119853 | G102: Av. Barão do Rio Branco, 767, Centro | H102: 87.485-000 | I102: Oberdam José de Oliveira
A103: Doutor Camargo | B103: 0.7370773604 | C103: 10% | D103: Maringá | E103: 76.282.714/0001-00 | F103: 120028 | G103: R. Xavier da Silva, 1000, Centro | H103: 87.155-000 | I103: Édilen Henrique Xavier
A104: Doutor Ulysses | B104: 0.4840244094 | C104: 1% | D104: Curitiba | E104: 95.422.911/0001-13 | F104: 122350 | G104: R. Olívio Gabriel de Oliveira, 10, Centro | H104: 83.590-000 | I104: Moiseis Branco da Silva
A105: Enéas Marques | B105: 0.7266385427 | C105: 10% | D105: Francisco Beltrão | E105: 76.205.657/0001-57 | F105: 119854 | G105: Av. Joaquim Bonetti, 579, Centro | H105: 85.630-000 | I105: Edson Lupatini
A106: Engenheiro Beltrão | B106: 0.7571575743 | C106: 10% | D106: Campo Mourão | E106: 76.950.039/0001-31 | F106: 119855 | G106: R. Manoel Ribas, 160, Centro | H106: 87.270-000 | I106: Adalmir José Garbim Junior
A107: Entre Rios do Oeste | B107: 0.7312819786 | C107: 10% | D107: Toledo | E107: 95.719.449/0001-10 | F107: 119856 | G107: R. Tocantins, 600, Centro | H107: 85.988-000 | I107: Ari Aloisio Maldaner
A108: Esperança Nova | B108: 0.7681597564 | C108: 10% | D108: Umuarama | E108: 01.612.269/0001-91 | F108: 119857 | G108: Av. Juvenal Silva Braga, 400, Centro | H108: 87.545-000 | I108: Everton Barbieri
A109: Espigão Alto do Iguaçu | B109: 0.6858874648 | C109: 5% | D109: Laranjeiras Do Sul | E109: 01.612.634/0001-68 | F109: 119858 | G109: Av. Brasília, 551, Centro | H109: 85.465-000 | I109: Agenor Bertoncelo
A110: Farol | B110: 0.7076426624 | C110: 10% | D110: Campo Mourão | E110: 95.640.124/0001-48 | F110: 122351 | G110: R. Bahia, 880, Centro | H110: 87.325-000 | I110: Oclecio de Freitas Meneses
A111: Faxinal | B111: 0.7212694985 | C111: 10% | D111: Ivaiporã | E111: 75.771.295/0001-07 | F111: 119859 | G111: Av. Brasil, 694, Centro | H111: 86.840-000 | I111: Ylson Alvaro Cantagallo
A112: Fazenda Rio Grande | B112: 0.7428512113 | C112: 10% | D112: Curitiba | E112: 95.422.986/0001-02 | F112: 122352 | G112: R. Jacarandá, 300, Nações | H112: 83.820-000 | I112: Nassib Kassem Hammad
A113: Fênix | B113: 0.7178925519 | C113: 10% | D113: Campo Mourão | E113: 76.950.021/0001-30 | F113: 119860 | G113: R. Jangada, 25, Centro | H113: 86.950-000 | I113: Altair Molina Serrano
A114: Fernandes Pinheiro | B114: 0.7447333349 | C114: 10% | D114: Irati | E114: 01.619.323/0001-20 | F114: 119861 | G114: Av. Remis João Loss, 600, Centro | H114: 84.535-000 | I114: Cleonice Aparecida Kufener Schuck
A115: Figueira | B115: 0.7301211692 | C115: 10% | D115: Jacarezinho | E115: 78.063.732/0001-18 | F115: 119862 | G115: R. Doutor Zoilo Meira Simões, 410, Centro | H115: 84.285-000 | I115: José Carlos Contiero
A116: Floraí | B116: 0.7303090936 | C116: 10% | D116: Maringá | E116: 75.731.000/0001-60 | F116: 122353 | G116: R. Presidente Getúlio Vargas, 177 | H116: 87.185-000 | I116: Edna de Lourdes Carpine Contin
A117: Flor da Serra do Sul | B117: 0.7867943663 | C117: 10% | D117: Francisco Beltrão | E117: 95.589.271/0001-30 | F117: 119863 | G117: R. João Arisi, 115, Centro | H117: 85.618-000 | I117: Valmor Felipe Junior
A118: Floresta | B118: 0.7656876188 | C118: 10% | D118: Maringá | E118: 76.282.706/0001-55 | F118: 119864 | G118: Av. Getúlio Vargas, 2420, Centro | H118: 87.120-000 | I118: Ademir Luiz Maciel
A119: Florestópolis | B119: 0.7349873565 | C119: 10% | D119: Londrina | E119: 75.845.495/0001-59 | F119: 122354 | G119: R. Santo Inácio, 161, Centro | H119: 86.165-000 | I119: Onicio de Souza
A120: Flórida | B120: 0.7261823882 | C120: 10% | D120: Maringá | E120: 75.772.400/0001-14 | F120: 122355 | G120: R. São Pedro, 443, Centro | H120: 86.780-000 | I120: Antonio Emerson Sette
A121: Formosa do Oeste | B121: 0.787136016 | C121: 10% | D121: Toledo | E121: 76.208.495/0001-00 | F121: 147689 | G121: Av. Severiano Bonfim dos Santos, 111, Centro | H121: 85.830-000 | I121: Luiz Antonio Domingos de Aguiar
A122: Foz do Iguaçu | B122: 0.768609809 | C122: 10% | D122: Cascavel | E122: 76.206.606/0001-40 | F122: 147495 | G122: Praça Getúlio Vargas, 280, Centro | H122: 85.851-340 | I122: Francisco Lacerda Brasileiro
A123: Foz do Jordão | B123: 0.669461306 | C123: 5% | D123: Guarapuava | E123: 01.603.719/0001-80 | F123: 122356 | G123: R. Padre Emílio Barbiéri, 339, Centro | H123: 85.145-000 | I123: Francisco Clei da Silva
A124: Francisco Alves | B124: 0.6437056867 | C124: 5% | D124: Umuarama | E124: 77.356.665/0001-67 | F124: 119865 | G124: R. Jorge Fereira, 627, Centro | H124: 87.570-000 | I124: Valter Cesar Rosa
A125: Francisco Beltrão | B125: 0.8106029867 | C125: 10% | D125: Francisco Beltrão | E125: 77.816.510/0001-66 | F125: 119866 | G125: R. Octaviano Teixeira dos Santos, 1000, Centro | H125: 85.600-000 | I125: Cleber Fontana
A126: General Carneiro | B126: 0.6867970655 | C126: 5% | D126: União da Vitória | E126: 75.687.681/0001-07 | F126: 122357 | G126: Av. Presidente Getúlio Vargas, 601, Centro | H126: 84.660-000 | I126: Joel Ricardo Martins Ferreira
A127: Godoy Moreira | B127: 0.6909724864 | C127: 5% | D127: Ivaiporã | E127: 81.392.656/0001-07 | F127: 119867 | G127: R. Sebastião Máximo, 184, Centro | H127: 86.938-000 | I127: Primis de Oliveira
A128: Goioerê | B128: 0.7518363202 | C128: 10% | D128: Campo Mourão | E128: 78.198.975/0001-63 | F128: 119868 | G128: Av. Amazonas, 280, Jardim Lindóia | H128: 87.360-000 | I128: Roberto dos Reis de Lima
A129: Goioxim | B129: 0.6949902801 | C129: 5% | D129: Guarapuava | E129: 01.607.627/0001-78 | F129: 131884 | G129: R. Laurindo Cordeiro de Souza, 184, Centro | H129: 85.162-000 | I129: Mari Terezinha da Silva
A130: Grandes Rios | B130: 0.6840587084 | C130: 5% | D130: Ivaiporã | E130: 75.741.348/0001-39 | F130: 119869 | G130: Av. Brasil, 967, Centro | H130: 86.845-000 | I130: Antonio Ribeiro da Silva
A131: Guaíra | B131: 0.7287925057 | C131: 10% | D131: Toledo | E131: 77.857.183/0001-90 | F131: 119870 | G131: Av. Coronel Otávio Tosta, 126 | H131: 85.980-000 | I131: Heraldo Trento
A132: Guairaçá | B132: 0.694585719 | C132: 5% | D132: Paranavaí | E132: 76.238.443/0001-87 | F132: 122358 | G132: R. Francisco Vieira, 1181 | H132: 87.880-000 | I132: Marcelo Alves de Oliveira
A133: Guamiranga | B133: 0.7377167738 | C133: 10% | D133: Irati | E133: 01.616.255/0001-46 | F133: 119871 | G133: R. Diogo Emanuel de Almeida, 234, Centro | H133: 84.435-000 | I133: Marcelo Leite
A134: Guapirama | B134: 0.7478869511 | C134: 10% | D134: Jacarezinho | E134: 75.443.812/0001-00 | F134: 119872 | G134: R. Dois de Março, 460 | H134: 86.465-000 | I134: Eduí Gonçalves
A135: Guaporema | B135: 0.732976059 | C135: 10% | D135: Cianorte | E135: 75.378.844/0001-70 | F135: 119873 | G135: R. Pará, 86 | H135: 87.810-000 | I135: Gilberto Castiglioni
A136: Guaraci | B136: 0.6230230834 | C136: 5% | D136: Londrina | E136: 75.845.537/0001-51 | F136: 122359 | G136: R. Prefeito João de Giuli, 180 | H136: 86.620-000 | I136: Sidnei Dezoti
A137: Guaraniaçu | B137: 0.7381868156 | C137: 10% | D137: Laranjeiras Do Sul | E137: 76.208.818/0001-66 | F137: 119874 | G137: Av. Abilon de Souza Neves, 394 | H137: 85.400-000 | I137: Osmario de Lima Portela
A138: Guarapuava | B138: 0.7847513426 | C138: 10% | D138: Guarapuava | E138: 76.178.037/0001-76 | F138: 122327 | G138: R. Brigadeiro Rocha, 2777 | H138: 85.010-210 | I138: Celso Fernando Góes
A139: Guaraqueçaba | B139: 0.5789779614 | C139: 5% | D139: Paranaguá | E139: 76.022.508/0001-52 | F139: 122360 | G139: R. Major Domingos do Nascimento, 46 | H139: 83.390-000 | I139: Lilian Ramos Narloch
A140: Guaratuba | B140: 0.6883117766 | C140: 5% | D140: Paranaguá | E140: 76.017.474/0001-08 | F140: 120032 | G140: R. Doutor João Cândido, 380, Centro | H140: 83.280-000 | I140: Roberto Cordeiro Justus
A141: Honório Serpa | B141: 0.7267985059 | C141: 10% | D141: Pato Branco | E141: 95.585.444/0001-42 | F141: 122361 | G141: R. Elpídio dos Santos, 541 | H141: 85.548-000 | I141: Luciano Dias
A142: Ibaiti | B142: 0.7210966449 | C142: 10% | D142: Jacarezinho | E142: 77.008.068/0001-41 | F142: 122362 | G142: R. Vereador José de Moura Bueno, 23 - Praça dos T | H142: 84.900-000 | I142: Antonely de Cássio Alves de Carvalho
A143: Ibema | B143: 0.7454621768 | C143: 10% | D143: Cascavel | E143: 80.881.931/0001-85 | F143: 119875 | G143: Av. Ney Euirson Napoli, 1426, Centro | H143: 85.478-000 | I143: Viviane Comiran
A144: Ibiporã | B144: 0.771424873 | C144: 10% | D144: Londrina | E144: 76.244.961/0001-03 | F144: 119876 | G144: R. Padre Vitoriano Valente, 540, Centro | H144: 86.200-000 | I144: José Maria Ferreira
A145: Icaraíma | B145: 0.6950566718 | C145: 5% | D145: Umuarama | E145: 76.247.337/0001-60 | F145: 119877 | G145: Av. Hermes Vissoto, 810 | H145: 87.530-000 | I145: Marcos Alex de Oliveira
A146: Iguaraçu | B146: 0.7875597545 | C146: 10% | D146: Maringá | E146: 75.772.525/0001-44 | F146: 147713 | G146: R. Otávio Pedro da Silva, 294 | H146: 86.750-000 | I146: Eliseu Silva da Costa
A147: Iguatu | B147: 0.7102139812 | C147: 10% | D147: Cascavel | E147: 95.595.013/0001-67 | F147: 119878 | G147: Av. Centenário, 500, Centro | H147: 85.423-000 | I147: Vlademir Antonio Barella
A148: Imbaú | B148: 0.634536006 | C148: 5% | D148: Ponta Grossa | E148: 01.613.770/0001-72 | F148: 122363 | G148: Av. Francisco Siqueira Kortz, 471, São Cristóv | H148: 84.250-000 | I148: Dayane Sovinski Rodrigues
A149: Imbituva | B149: 0.7520849658 | C149: 10% | D149: Irati | E149: 76.175.892/0001-23 | F149: 119879 | G149: R. José Buhrer Júnior, 462 | H149: 84.430-000 | I149: Celso Kubaski
A150: Inácio Martins | B150: 0.6514087052 | C150: 5% | D150: Irati | E150: 76.178.029/0001-20 | F150: 119880 | G150: R. Sete de Setembro, 332 | H150: 85.155-000 | I150: Edemetrio Benato Junior
A151: Inajá | B151: 0.7665761988 | C151: 10% | D151: Paranavaí | E151: 76.970.318/0001-67 | F151: 122364 | G151: Av. Antonio Vieira Martins, 80 | H151: 87.670-000 | I151: Cléber Geraldo da Silva
A152: Indianópolis | B152: 0.7399653592 | C152: 10% | D152: Cianorte | E152: 75.798.355/0001-77 | F152: 119881 | G152: Praça Caramurú, 150 | H152: 87.210-000 | I152: Juliano Trevisan Cordeiro
A153: Ipiranga | B153: 0.6611912772 | C153: 5% | D153: Ponta Grossa | E153: 76.175.934/0001-26 | F153: 119882 | G153: R. Xv de Novembro, 545, Centro | H153: 84.450-000 | I153: Douglas Davi Cruz
A154: Iporã | B154: 0.7126205847 | C154: 10% | D154: Umuarama | E154: 75.738.484/0001-70 | F154: 119883 | G154: R. Pedro Alvares Cabral, 2677 | H154: 87.560-000 | I154: Sergio Luiz Borges
A155: Iracema do Oeste | B155: 0.7383587868 | C155: 10% | D155: Toledo | E155: 95.583.555/0001-10 | F155: 119884 | G155: R. Professor Vieira de Alencar, 441 | H155: 85.833-000 | I155: Elza Haase Rodrigues
A156: Irati | B156: 0.7696060339 | C156: 10% | D156: Irati | E156: 75.654.574/0001-82 | F156: 119885 | G156: R. Coronel Emílio Gomes, 22 | H156: 84.500-000 | I156: Jorge David Derbli Pinto
A157: Iretama | B157: 0.7428546492 | C157: 10% | D157: Campo Mourão | E157: 76.950.088/0001-74 | F157: 122365 | G157: R. Oscar Gauer Khunn, 174 | H157: 87.280-000 | I157: Same Saab
A158: Itaguajé | B158: 0.7225105447 | C158: 10% | D158: Maringá | E158: 76.970.359/0001-53 | F158: 147724 | G158: Av. Governador Moisés Lupion, 605 | H158: 86.670-000 | I158: Crisogono Noleto E Silva Junior
A159: Itaipulândia | B159: 0.8323345845 | C159: 10% | D159: Cascavel | E159: 95.725.057/0001-64 | F159: 147725 | G159: R. São Miguel do Iguaçu, 1891 | H159: 80.588-000 | I159: Cleide Ines Griebeler Prates
A160: Itambaracá | B160: 0.6998430448 | C160: 5% | D160: Cornélio Procópio | E160: 76.235.738/0001-08 | F160: 119886 | G160: Av. Interventor Manoel Ribas, 6, Centro | H160: 86.375-000 | I160: Mônica Cristina Zambon Holzmann
A161: Itambé | B161: 0.7206638429 | C161: 10% | D161: Maringá | E161: 76.282.698/0001-47 | F161: 133431 | G161: Praça Rui Barbosa, 34 | H161: 87.175-000 | I161: Vitor Aparecido Fedrigo
A162: Itapejara D'Oeste | B162: 0.7761117802 | C162: 10% | D162: Pato Branco | E162: 76.995.430/0001-52 | F162: 119887 | G162: Av. Manoel Ribas, 620, Centro | H162: 85.580-000 | I162: Vilmar Schmoller
A163: Itaperuçu | B163: 0.5851372818 | C163: 5% | D163: Curitiba | E163: 95.422.846/0001-26 | F163: 147510 | G163: Av. Crispim Furquim da Siqueira, 1800 | H163: 83.560-000 | I163: Neneu Jose Artigas
A164: Itaúna do Sul | B164: 0.6344894707 | C164: 5% | D164: Paranavaí | E164: 75.458.836/0001-33 | F164: 119888 | G164: Av. Brasil, 883, Centro | H164: 87.980-000 | I164: Gilson José de Gois
A165: Ivaí | B165: 0.7110033706 | C165: 10% | D165: Ponta Grossa | E165: 76.175.918/0001-33 | F165: 119889 | G165: R. Rui Barbosa, 632 | H165: 84.460-000 | I165: Idir Treviso
A166: Ivaiporã | B166: 0.7463447724 | C166: 10% | D166: Ivaiporã | E166: 75.741.330/0001-37 | F166: 119890 | G166: R. Rio Grande do Norte, 1000 | H166: 86.870-000 | I166: Luiz Carlos Gil
A167: Ivaté | B167: 0.7540000312 | C167: 10% | D167: Umuarama | E167: 95.640.553/0001-15 | F167: 122366 | G167: Av. Rio de Janeiro, 2758 | H167: 87.525-000 | I167: Denilson Vaglieri Prevital
A168: Ivatuba | B168: 0.7768698775 | C168: 10% | D168: Maringá | E168: 76.285.337/0001-54 | F168: 122367 | G168: R. Marechal Floriano, 797 | H168: 87.130-000 | I168: Sergio José Santi
A169: Jaboti | B169: 0.7064727199 | C169: 10% | D169: Jacarezinho | E169: 75.969.667/0001-04 | F169: 119891 | G169: Praça Minas Gerais, 175 | H169: 84.930-000 | I169: Regis William Siqueira Rodrigues
A170: Jacarezinho | B170: 0.7455368678 | C170: 10% | D170: Jacarezinho | E170: 76.966.860/0001-46 | F170: 119892 | G170: R. Coronel Baptista, 335 | H170: 86.400-000 | I170: Marcelo José Bernardeli Palhares
A171: Jaguapitã | B171: 0.8043137653 | C171: 10% | D171: Londrina | E171: 75.457.341/0001-90 | F171: 122368 | G171: Av. Minas Gerais, 220 | H171: 86.610-000 | I171: Gerson Luiz Marcato
A172: Jaguariaíva | B172: 0.7577483974 | C172: 10% | D172: Ponta Grossa | E172: 76.910.900/0001-38 | F172: 119893 | G172: Praça Isabel Branco, 142, Cidade Alta | H172: 84.200-000 | I172: Alcione Lemos
A173: Jandaia do Sul | B173: 0.7886722118 | C173: 10% | D173: Apucarana | E173: 75.771.204/0001-25 | F173: 119894 | G173: Praça do Café, 22 | H173: 86.900-000 | I173: Lauro de Souza Silva Junior
A174: Janiópolis | B174: 0.7445613692 | C174: 10% | D174: Campo Mourão | E174: 76.402.882/0001-83 | F174: 120033 | G174: R. Rui Barbosa, 286, Centro | H174: 87.380-000 | I174: Ismael Jose Dezanoski
A175: Japira | B175: 0.5705232894 | C175: 5% | D175: Jacarezinho | E175: 75.969.881/0001-52 | F175: 119895 | G175: Av. Alexandre Leite dos Santos, 481, Centro | H175: 84.920-000 | I175: Angelo Marcos Vigilato
A176: Japurá | B176: 0.7885600649 | C176: 10% | D176: Cianorte | E176: 75.788.349/0001-39 | F176: 119896 | G176: Av. Bolivar, 363, Centro | H176: 87.225-000 | I176: Adriana Cristina Polizer
A177: Jardim Alegre | B177: 0.6489836403 | C177: 5% | D177: Ivaiporã | E177: 75.741.363/0001-87 | F177: 122369 | G177: Praça Mariana Leite Felix, 800 | H177: 86.860-000 | I177: José Roberto Furlan
A178: Jardim Olinda | B178: 0.7056425296 | C178: 10% | D178: Paranavaí | E178: 76.970.383/0001-92 | F178: 122370 | G178: Av. Siqueira Campos, 83, Centro | H178: 87.690-000 | I178: Lucimar de Souza Morais
A179: Jataizinho | B179: 0.6711765822 | C179: 5% | D179: Cornélio Procópio | E179: 76.245.042/0001-54 | F179: 147744 | G179: Av. Presidente Getúlio Vargas, 494 | H179: 86.210-000 | I179: Wilson Fernandes
A180: Jesuítas | B180: 0.7526153857 | C180: 10% | D180: Toledo | E180: 77.398.154/0001-08 | F180: 119897 | G180: R. Padre Leonel França, 369 | H180: 85.835-000 | I180: Aparecido Jose Weiller Junior
A181: Joaquim Távora | B181: 0.8093243974 | C181: 10% | D181: Jacarezinho | E181: 76.966.845/0001-06 | F181: 122371 | G181: R. Miguel Dias, 226, Centro | H181: 86.455-000 | I181: Reginaldo Vilela
A182: Jundiaí do Sul | B182: 0.7232964158 | C182: 10% | D182: Jacarezinho | E182: 76.408.061/0001-54 | F182: 175629 | G182: Praça Pio X, 260, Centro | H182: 86.470-000 | I182: Eclair Rauen
A183: Juranda | B183: 0.7604325069 | C183: 10% | D183: Campo Mourão | E183: 78.196.755/0001-09 | F183: 119898 | G183: Praça Henrique Szafermann, 139, Centro | H183: 87.355-000 | I183: Leila Miotto Amadei
A184: Jussara | B184: 0.7941292462 | C184: 10% | D184: Cianorte | E184: 75.789.552/0001-20 | F184: 119899 | G184: Av. Princesa Izabel, 320, Centro | H184: 87.230-000 | I184: Robison Pedroso da Silva
A185: Kaloré | B185: 0.7681867523 | C185: 10% | D185: Apucarana | E185: 75.771.238/0001-10 | F185: 122372 | G185: Praça Francisco Lemes Gonçalves, 267, Centro | H185: 86.920-000 | I185: Edmilson Luis Stencel
A186: Lapa | B186: 0.6845986231 | C186: 5% | D186: Curitiba | E186: 76.020.452/0001-05 | F186: 119788 | G186: Alameda David Carneiro, 243, Centro | H186: 83.750-000 | I186: Diego Timbirussu Ribas
A187: Laranjal | B187: 0.640406178 | C187: 5% | D187: Pitanga | E187: 95.684.536/0001-80 | F187: 119900 | G187: R. Pernambuco, 501, Centro | H187: 85.275-000 | I187: João Elinton Dutra
A188: Laranjeiras do Sul | B188: 0.7515064612 | C188: 10% | D188: Laranjeiras Do Sul | E188: 76.205.970/0001-95 | F188: 119901 | G188: R. Expedicionário João Maria, 1020, Centro | H188: 85.301-410 | I188: Jonatas Felisberto da Silva
A189: Leópolis | B189: 0.690204392 | C189: 5% | D189: Cornélio Procópio | E189: 75.388.850/0001-08 | F189: 119902 | G189: R. Pedro Domingues de Souza, 374, Centro | H189: 86.330-000 | I189: Alessandro Ribeiro
A190: Lidianópolis | B190: 0.7409826005 | C190: 10% | D190: Ivaiporã | E190: 95.680.831/0001-68 | F190: 119903 | G190: R. Juscelino Kubitschek, 327, Centro | H190: 86.865-000 | I190: Adauto Aparecido Mandu
A191: Lindoeste | B191: 0.7319757803 | C191: 10% | D191: Cascavel | E191: 80.881.915/0001-92 | F191: 147756 | G191: Av. Marechal Cândido Rondon, S/N, Centro | H191: 85.826-000 | I191: Silvio de Souza
A192: Loanda | B192: 0.7345218635 | C192: 10% | D192: Paranavaí | E192: 76.972.074/0001-51 | F192: 119904 | G192: R. Mato Grosso, 354, Alto da Glória | H192: 87.900-000 | I192: José Maria Pereira Fernandes
A193: Lobato | B193: 0.7522878877 | C193: 10% | D193: Maringá | E193: 76.970.367/0001-08 | F193: 119905 | G193: R. Antonio Coleto, 1260, Centro | H193: 86.790-000 | I193: Fabio Chicaroli
A194: Londrina | B194: 0.8005800825 | C194: 10% | D194: Londrina | E194: 75.771.477/0001-70 | F194: 140982 | G194: Av. Duque de Caxias, 635, Jardim Mazei Ii | H194: 86.015-901 | I194: Marcelo Belinati Martins
A195: Luiziana | B195: 0.7007813416 | C195: 10% | D195: Campo Mourão | E195: 80.888.688/0001-27 | F195: 122373 | G195: R. Doutor Miguel Vieira Ferreira, 22, Centro | H195: 87.290-000 | I195: Wilson Antônio Tureck
A196: Lunardelli | B196: 0.7373870033 | C196: 10% | D196: Ivaiporã | E196: 78.600.491/0001-07 | F196: 122374 | G196: Av. Dom Pedro Ii, 195, Centro | H196: 86.935-000 | I196: Reinaldo Grola
A197: Lupionópolis | B197: 0.654752589 | C197: 5% | D197: Londrina | E197: 75.845.511/0001-03 | F197: 119906 | G197: Praça Padre Antonio Pozzato, 880, Centro | H197: 86.635-000 | I197: Antonio Peloso Filho
A198: Mallet | B198: 0.7947927002 | C198: 10% | D198: Irati | E198: 75.654.566/0001-36 | F198: 119907 | G198: R. Xv de Novembro, 28, Centro | H198: 84.570-000 | I198: Moacir Alfredo Szinvelski
A199: Mamborê | B199: 0.7233149691 | C199: 10% | D199: Campo Mourão | E199: 75.368.928/0001-22 | F199: 122375 | G199: R. Guadalajara, 645, Centro | H199: 87.340-000 | I199: Ricardo Radomski
A200: Mandaguaçu | B200: 0.7465026742 | C200: 10% | D200: Maringá | E200: 76.285.329/0001-08 | F200: 119908 | G200: R. Bernardino Bogo, 175, Centro | H200: 87.160-000 | I200: Maurício Aparecido da Silva
... 201 more rows
